Cogmind - Beta 9.2 @@@ ROGUE MODE // 2019.12.19 @ 15:46:04 Player: Valguris Result: Destroyed by Combat Programmer with EMDS Performance ------------- Evolutions (8) 4000 Regions Visited (39) 7800 Robots Destroyed (501) 2505 Value Destroyed (28315) 28315 Prototype IDs (110) 2200 Alien Tech Used (12) 2400 Bonus (24100) 24100 TOTAL SCORE: 71320 Bonus ------- High Alert Combat Kills 6652 Follower Combat Kills 8061 Entered Garrisons 2200 Used RIF Installer 5000 Network Hubs Disabled 200 Built Enhanced Grunts 300 A7 Reached Mainframe 300 Met R17 at Cetus 500 Scanned by Researcher 500 Pursued by Intercept 1000 Friendly Fire -613 Cogmind --------- Core Integrity 0/1450 Matter 300/300 Energy 348/350 System Corruption 0% Temperature Cool (0) Movement Core (50) Location -2/Research Parts ------- > --- POWER (3) -------- (None) > --- PROPULSION (3) --- (None) > --- UTILITY (15) ----- Experimental Targeting Computer Relay Coupler [Sentry] (9) Relay Coupler [Hunter] (12) > --- WEAPON (3) ------- (None) > --- INVENTORY (6) ---- Advanced Cooling System Experimental Matter Compressor (130) Experimental Targeting Computer HERF Cannon Compact HERF Cannon Cooled Phase Cannon Peak State ------------ > --- POWER ------------ Improved Quantum Reactor > --- PROPULSION ------- Biometal Medium Treads Biometal Heavy Treads > --- UTILITY ---------- Large Storage Unit Large Storage Unit High-capacity Storage Unit High-capacity Storage Unit High-capacity Storage Unit Experimental Target Analyzer Centrium Medium Armor Plating Heavy Regenerative Plating Improved Energy Mantle Relay Coupler [NC] Relay Coupler [C] Relay Coupler [C] Relay Coupler [Hunter] System Backup Module > --- WEAPON ----------- Multirail Multirail > --- INVENTORY -------- Quantum Reactor Improved Quantum Reactor Experimental Biometal Heavy Treads Experimental Biometal Heavy Treads Experimental Biometal Heavy Treads Experimental Cooling System Improved Energy Well Advanced Matter Compressor Enhanced Optical Array Experimental Terrain Scan Processor Energy Filter Damper Plating Relay Coupler [C] Relay Coupler [Demolisher] High-powered Transdimensional Reconstructor High-powered Transdimensional Reconstructor Core Regenerator Integrity Redistributor Subatomic Replicator Gamma Rifle Gamma Rifle EMDS Cooled Plasma Cannon Long-range Phase Cannon Long-range Phase Cannon Hardcell Cannon Hardcell Cannon Improved Proton Missile Launcher Precision Rocket Launcher Sigix Terminator Advanced Remote Datajack [Rating: 169] Favorites ----------- Power Quantum Reactor Engine Heavy Ion Engine Power Core Light Nuclear Core Reactor Quantum Reactor Propulsion Improved Treads Treads Improved Treads Leg Flexi-carbon Leg Wheel Armored Huge Wheel Utility High-capacity Storage Unit Device Experimental Sensor Array Storage High-capacity Storage Unit Processor Experimental Targeting Computer Hackware Relay Coupler [Hunter] Protection Hardened Medium Armor Plating Artifact Phase Armor Weapon Cooled Plasma Cannon Energy Gun High-powered Shock Rifle Energy Cannon Cooled Plasma Cannon Ballistic Gun Railgun Ballistic Cannon Advanced Assault Cannon Launcher Improved Proton Missile Launcher Special Weapon Advanced Remote Datajack Slashing Weapon Katana Special Melee Weapon Improved Datajack Build | -11 -10 -10 -9 -9 -9 -8 -8 -8 -8 -8 -7 -7 -7 -7 -6 -6 -6 -6 -6 -6 -6 -6 -5 -5 -5 -5 -4 -4 -4 -4 -4 -4 -3 -3 -3 -3 -2 -2 -2 ------- Run | Scr Mat Min Mat Min Exi Min Mat Gar Mat Gar Fac Gar Fac Gar Fac Gar Fac Ext Cet Arc Hub Gar Fac Was Fac Gar Fac Was Fac Gar Fac Gar Res Qua Sec Gar Res Gar Res Slots Evolved 16 | . . . 2 . . . 2 . . . 2 . . . 2 . . . . . . . 2 . . . 2 . . . . . 2 . . . 2 . . Power 2 | . . . . . . . . . . . . . . . . . . . . . . . . . . . . . . . . . . . . . 2 . . Propulsion 1 | . . . . . . . . . . . 1 . . . . . . . . . . . . . . . . . . . . . . . . . . . . Utility 13 | . . . 2 . . . 2 . . . 1 . . . 2 . . . . . . . 2 . . . 2 . . . . . 2 . . . . . . Weapon . | . . . . . . . . . . . . . . . . . . . . . . . . . . . . . . . . . . . . . . . . Parts Attached 740 | 7 8 1 23 8 2 5 79 10 5 5 33 9 . 16 2 29 26 45 18 1 35 14 7 10 19 22 5 5 7 8 3 6 8 30 127 2 17 31 52 Power 31 | 1 . . . 1 . . 1 1 . . 2 . . . . 2 2 1 1 . 1 . . . . . 1 . . . . . . . 8 . 1 3 5 Engine 10 | 1 . . . 1 . . 1 1 . . 1 . . . . 2 2 1 . . . . . . . . . . . . . . . . . . . . . Core 1 | . . . . . . . . . . . 1 . . . . . . . . . . . . . . . . . . . . . . . . . . . . Reactor 20 | . . . . . . . . . . . . . . . . . . . 1 . 1 . . . . . 1 . . . . . . . 8 . 1 3 5 Propulsion 61 | 2 2 . 1 2 . . 9 . . . 3 . . 5 . 1 2 3 1 1 . . . 1 1 1 . 1 . . . . 2 1 10 . 4 2 6 Treads 47 | 2 2 . 1 2 . . 9 . . . 3 . . 4 . . . . 1 1 . . . . 1 . . 1 . . . . 2 1 7 . 3 1 6 Leg 5 | . . . . . . . . . . . . . . . . . . . . . . . . . . . . . . . . . . . 3 . 1 1 . Wheel 9 | . . . . . . . . . . . . . . 1 . 1 2 3 . . . . . 1 . 1 . . . . . . . . . . . . . Hover . | . . . . . . . . . . . . . . . . . . . . . . . . . . . . . . . . . . . . . . . . Flight . | . . . . . . . . . . . . . . . . . . . . . . . . . . . . . . . . . . . . . . . . Utility 336 | 2 1 1 14 5 2 2 50 1 2 . 8 3 . 4 2 12 6 13 8 . 16 6 3 8 7 11 3 4 2 5 . 3 5 17 55 1 6 20 28 Device 143 | . . . 7 2 1 1 30 1 2 . 4 2 . 1 2 6 3 7 3 . 14 1 1 2 4 1 1 3 . . . . 1 7 14 . 2 6 14 Storage 27 | 2 1 1 1 2 1 . 4 . . . . . . . . . . 1 1 . . 1 . . . . . . . . . . . 4 4 . . . 4 Processor 9 | . . . 1 . . . . . . . 1 . . . . . . . . . 1 . . . . . . . . . . . . . 1 . 1 1 3 Hackware 54 | . . . . . . . 1 . . . . . . 1 . 3 2 . . . 1 4 1 . . 8 1 . 1 4 . 3 3 1 4 . . 9 7 Protection 99 | . . . 5 1 . 1 15 . . . 3 1 . 2 . 3 1 5 4 . . . 1 6 3 2 1 1 1 1 . . 1 4 29 1 3 4 . Artifact 4 | . . . . . . . . . . . . . . . . . . . . . . . . . . . . . . . . . . 1 3 . . . . Weapon 312 | 2 5 . 8 . . 3 19 8 3 5 20 6 . 7 . 14 16 28 8 . 18 8 4 1 11 10 1 . 5 3 3 3 1 12 54 1 6 6 13 Energy Gun 27 | 1 . . . . . . 1 . . . . . . . . . 2 10 3 . . . . . . . . . . . . . . . 4 . 3 3 . Energy Cannon 152 | . . . 4 . . 1 9 2 1 3 14 3 . 3 . 8 7 4 . . 11 5 2 1 8 6 1 . 3 1 2 1 1 10 30 . 2 1 8 Ballistic Gun 18 | 1 2 . . . . . . . . . . . . . . . . . . . 4 . . . 1 1 . . . . . . . . 6 . 1 1 1 Ballistic Cannon 22 | . 3 . 2 . . 1 3 2 . . . . . . . . 2 3 . . 2 . . . . . . . . . . . . . 4 . . . . Launcher 47 | . . . 2 . . 1 6 4 2 2 2 3 . 3 . 1 3 3 5 . . . . . . . . . 1 . . . . . 7 1 . . 1 Special Weapon 38 | . . . . . . . . . . . . . . . . 5 2 6 . . . 3 2 . 2 3 . . 1 2 1 2 . 2 3 . . 1 3 Impact Weapon . | . . . . . . . . . . . . . . . . . . . . . . . . . . . . . . . . . . . . . . . . Slashing Weapon 5 | . . . . . . . . . . . 3 . . . . . . 1 . . 1 . . . . . . . . . . . . . . . . . . Piercing Weapon . | . . . . . . . . . . . . . . . . . . . . . . . . . . . . . . . . . . . . . . . . Special Melee Weapon 3 | . . . . . . . . . . . 1 . . 1 . . . 1 . . . . . . . . . . . . . . . . . . . . . Unidentified Prototypes 34 | . . . . . . . 2 . . . 1 . . . . . 2 1 5 . 9 . . 2 . . . 1 1 . . . . 2 5 1 . . 2 Parts Lost 131 | . . . . . . . 6 . 1 1 6 5 . 7 . 5 . 1 . . 3 . . . . 1 . . . . . . . 1 52 . 16 2 24 Power 10 | . . . . . . . . . . . 1 . . . . 1 . . . . . . . . . . . . . . . . . . 5 . . . 3 Propulsion 24 | . . . . . . . . . . . 1 . . 4 . . . . . . 1 . . . . . . . . . . . . . 7 . 5 . 6 Utility 58 | . . . . . . . 4 . . . 2 3 . 1 . 2 . . . . 1 . . . . 1 . . . . . . . . 27 . 8 1 8 Weapon 39 | . . . . . . . 2 . 1 1 2 2 . 2 . 2 . 1 . . 1 . . . . . . . . . . . . 1 13 . 3 1 7 Highest Loss Streak 23 | . . . . . . . 2 . 1 1 3 5 . 6 . 4 . 1 . . 2 . . . . 1 . . . . . . . 1 23 . 15 1 18 Average Slot Usage (%) 91 | . 99 100 99 99 100 100 99 100 100 100 94 99 100 92 93 91 92 93 92 93 89 82 82 91 88 92 93 93 92 93 94 94 94 92 85 44 47 67 85 Engine 4 | . 14 14 11 11 11 11 9 9 9 9 6 7 7 7 6 5 6 6 . . . . . . . . . . . . . . . . . . . . . Reactor 2 | . . . . . . . . . . . . . . . . . . . 5 6 6 6 5 5 5 5 5 5 5 5 5 5 4 4 3 . . 8 11 Treads 12 | . 28 28 22 21 22 22 17 18 18 18 22 23 23 8 6 2 . . 5 12 12 6 5 5 6 5 5 9 10 10 10 10 9 9 8 . . 6 7 Wheel 1 | . . . . . . . . . . . . . . 6 6 10 13 13 6 . . . . 3 3 5 5 . . . . . . . . . . . . Device 7 | . . . 10 9 5 10 14 9 9 9 8 14 15 12 20 15 14 9 6 6 7 1 5 . 2 . 4 6 1 . . . . 1 2 4 5 12 10 Storage 20 | . 28 28 22 23 27 22 20 27 27 27 23 23 23 23 20 20 20 20 20 20 20 25 23 23 23 23 21 21 21 21 21 21 19 20 23 . . . 9 Processor 5 | . . . 8 11 11 11 9 . . . 1 7 7 . . . . . . . 3 6 5 5 5 5 5 5 5 5 5 5 4 4 3 4 5 9 8 Hackware 15 | . . . . . . . . 9 9 9 6 . . 6 6 11 18 26 26 26 21 23 23 29 29 28 29 31 29 32 36 36 42 36 24 13 10 10 19 Protection 5 | . . . 3 . . . 9 9 9 9 6 6 7 9 13 10 6 3 5 6 6 1 4 4 2 4 6 3 8 8 5 5 3 3 5 8 8 8 3 Energy Cannon 6 | . . . 8 11 11 11 8 1 8 10 13 9 7 10 13 12 11 3 . . 3 8 4 5 5 4 6 10 5 5 7 8 4 4 4 . 1 1 6 Ballistic Cannon 4 | . 20 28 13 11 11 11 8 11 9 6 . . . . . . . 1 . . 2 . . . . . . . . . . . . . . . . . . Naked Turns . | . . . . . . . . . . . . . . . . . . . . . . . . . . . . . . . . . . . . . . . . Heaviest Build 238 | 15 23 27 60 62 87 86 124 127 125 125 126 127 118 127 129 129 130 138 142 142 150 162 163 160 160 160 162 159 159 163 156 156 156 204 238 24 80 141 153 Greatest Support 120 | 40 43 43 46 46 46 46 46 40 40 40 64 64 64 64 28 40 40 40 80 103 103 80 80 80 103 28 28 103 103 103 103 103 103 115 120 65 70 98 103 Greatest Overweight (x) 6 | 1 . . 1 1 1 1 3 3 3 3 2 1 1 6 4 6 3 3 3 1 1 2 2 1 1 6 5 5 1 1 1 1 1 1 2 . 1 1 1 Average Overweight (x) 1 | . . . . 1 1 1 1 3 3 3 1 1 1 3 4 3 2 2 1 1 1 1 1 1 1 5 5 1 1 1 1 1 1 1 . . . . . Largest Inventory Capacity 42 | 8 10 12 16 18 24 20 28 28 28 28 28 28 28 28 28 28 28 28 28 28 28 34 34 34 34 34 34 34 34 34 34 34 34 40 42 6 6 6 18 Average Capacity 24 | 6 8 11 15 16 19 20 21 28 28 28 28 28 28 28 28 28 28 28 28 28 28 33 34 34 34 34 34 34 34 34 34 34 34 35 39 6 6 6 15 Most Carried 42 | 6 10 12 16 18 20 20 28 28 28 28 28 28 26 28 28 28 28 28 28 28 28 34 34 34 34 34 34 34 34 34 34 34 34 37 42 6 6 6 18 Average Carried 24 | 4 8 10 15 16 18 19 20 27 27 27 26 27 26 24 27 27 27 27 27 28 27 32 33 33 33 33 32 33 33 33 33 33 33 34 36 4 5 5 14 Final Capacity 40 | 8 10 12 16 18 20 20 28 28 28 28 28 28 28 28 28 28 28 28 28 28 28 34 34 34 34 34 34 34 34 34 34 34 34 40 6 6 6 6 6 Final Carried 36 | 6 10 12 16 18 19 20 27 28 28 27 28 26 26 28 28 28 28 28 28 28 28 34 34 34 34 34 34 33 34 34 34 34 33 36 6 4 6 6 6 Class Distribution -------------------- 35% | Botlord-Mutant 25% | Hauler-Mutant 16% | Mutant 11% | Bothacker-Mutant 6% | Scavenger-Mutant Dominant Class ---------------- Mutant | -10/Materials Mutant | -10/Mines Mutant | -9/Materials Mutant | -9/Mines Hauler-Mutant | -9/Exiles Hauler-Mutant | -8/Mines Hauler-Mutant | -8/Materials Hauler-Mutant | -8/Garrison Hauler-Mutant | -8/Materials Hauler-Mutant | -8/Garrison Hauler-Mutant | -7/Factory Hauler-Mutant | -7/Garrison Hauler-Mutant | -7/Factory Hauler-Mutant | -7/Garrison Hauler-Mutant | -6/Factory Bothacker-Mutant | -6/Garrison Bothacker-Mutant | -6/Factory Bothacker-Mutant | -6/Extension Bothacker-Mutant | -6/Cetus Bothacker-Mutant | -6/Archives Bothacker-Mutant | -6/Hub_04(d) Botlord-Mutant | -6/Garrison Botlord-Mutant | -5/Factory Botlord-Mutant | -5/Waste Botlord-Mutant | -5/Factory Botlord-Mutant | -5/Garrison Botlord-Mutant | -4/Factory Botlord-Mutant | -4/Waste Botlord-Mutant | -4/Factory Botlord-Mutant | -4/Garrison Botlord-Mutant | -4/Factory Botlord-Mutant | -4/Garrison Botlord-Mutant | -3/Research Botlord-Mutant | -3/Quarantine Botlord-Mutant | -3/Section 7 Scavenger-Mutant | -3/Garrison Scavenger-Mutant | -2/Research Scavenger-Mutant | -2/Garrison Botlord-Mutant | -2/Research Resources | -11 -10 -10 -9 -9 -9 -8 -8 -8 -8 -8 -7 -7 -7 -7 -6 -6 -6 -6 -6 -6 -6 -6 -5 -5 -5 -5 -4 -4 -4 -4 -4 -4 -3 -3 -3 -3 -2 -2 -2 ----------- Run | Scr Mat Min Mat Min Exi Min Mat Gar Mat Gar Fac Gar Fac Gar Fac Gar Fac Ext Cet Arc Hub Gar Fac Was Fac Gar Fac Was Fac Gar Fac Gar Res Qua Sec Gar Res Gar Res Matter Collected 16266 | 273 419 74 481 104 30 66 1743 299 125 217 415 145 . 290 . 358 212 859 291 22 911 346 104 145 395 453 75 60 89 144 154 80 70 534 4332 . 448 461 1042 Remotely . | . . . . . . . . . . . . . . . . . . . . . . . . . . . . . . . . . . . . . . . . Salvage Created 23036 | 66 501 94 634 101 . 54 1902 363 254 272 710 812 . 770 . 794 934 557 288 69 1493 182 143 244 690 513 . 317 . 75 27 54 . 144 5715 . 765 334 3165 Parts 1033 | 4 33 4 47 6 . 4 111 30 10 18 26 42 . 38 . 21 39 37 13 5 46 8 4 4 20 16 . 3 . 3 2 2 . 11 253 . 34 13 126 Haulers Intercepted 19 | . . . 3 . . . 6 . . . 1 . . . . . 3 . . . 2 . . . . . . . . . . . . . 1 . . . 3 Recyclers Shooed 12 | . . . 2 1 . . 3 . . . . . . . . . 2 . . . . . . . . . . . . . . . . . 1 . . . 3 Parts Field Recycled . | . . . . . . . . . . . . . . . . . . . . . . . . . . . . . . . . . . . . . . . . Retrieved Matter . | . . . . . . . . . . . . . . . . . . . . . . . . . . . . . . . . . . . . . . . . Parts Self-Destructed . | . . . . . . . . . . . . . . . . . . . . . . . . . . . . . . . . . . . . . . . . Prevented . | . . . . . . . . . . . . . . . . . . . . . . . . . . . . . . . . . . . . . . . . Kills | -11 -10 -10 -9 -9 -9 -8 -8 -8 -8 -8 -7 -7 -7 -7 -6 -6 -6 -6 -6 -6 -6 -6 -5 -5 -5 -5 -4 -4 -4 -4 -4 -4 -3 -3 -3 -3 -2 -2 -2 ------- Run | Scr Mat Min Mat Min Exi Min Mat Gar Mat Gar Fac Gar Fac Gar Fac Gar Fac Ext Cet Arc Hub Gar Fac Was Fac Gar Fac Was Fac Gar Fac Gar Res Qua Sec Gar Res Gar Res Combat Hostiles Destroyed 401 | . 15 1 8 1 . 1 43 14 5 12 14 21 . 27 . 14 8 16 3 1 24 3 2 . 8 10 . . . 1 . 1 . 3 81 19 9 4 32 Melee 4 | . . . . . . . . . . . 2 1 . . . . . 1 . . . . . . . . . . . . . . . . . . . . . Guns 27 | . 2 . . . . . . . . . . . . . . . 1 2 . . 3 . . . . . . . . . . . . . 13 . 4 2 . Cannons 158 | . 13 1 2 1 . 1 27 4 2 1 5 7 . 5 . 8 5 2 . . 15 2 . . 3 5 . . . 1 . 1 . 3 21 . 2 . 21 AOE 149 | . . . 6 . . . 16 10 3 11 4 11 . 21 . 5 2 10 2 1 . . . . . . . . . . . . . . 22 19 . . 6 Classes Destroyed 21 | 1 2 1 4 . . 2 4 . . . . . . . . 1 . . . . 1 . . . . . . . . . . . . . 4 . . . 1 Worker 18 | . . . 2 . . 1 6 . . . 1 . . . . . . 1 . . . . . . . . . . . . . . . . 3 . . . 4 Builder 13 | . . . . . . . 3 . 1 . . . . . . . . 3 . . . . . . . . . . . . . . . . 5 . . . 1 Tunneler 4 | . . . . . . 2 . . . . 1 . . . . . . . . . . . . . . . . . . . . . . . . . 1 . . Hauler 19 | . . . 3 . . . 6 . . . 1 . . . . . 3 . . . 2 . . . . . . . . . . . . . 1 . . . 3 Recycler 19 | 1 1 1 3 1 . . 3 . 1 . . . . . . . 1 . . . . . . . 1 . . . . . . . . . 2 . . . 4 Mechanic 1 | . . . . . . . 1 . . . . . . . . . . . . . . . . . . . . . . . . . . . . . . . . Operator 3 | . . . 1 . . . . . . . . . . . . . . . . . . . . . . . . . . . 1 . . . 1 . . . . Watcher 19 | . 2 . 3 . . . 5 . . . 1 . . . . . 1 1 1 . . . 1 . 1 . . . . . . . . . 1 . 1 . 1 Swarmer 87 | . . 1 5 . . . 7 4 . 4 3 7 . 14 . 4 . 10 . . 5 . . . . 3 . . . . . . . . 14 4 1 1 . Saboteur 2 | . . . . . . . . . . . . . . . . . . . . . . . . . . . . . . . . . . . 2 . . . . Grunt 146 | . 15 . 2 1 . . 21 5 3 6 8 10 . 9 . 7 3 3 1 . 6 1 . . . 2 . . . . . . . . 20 10 3 3 7 Brawler 9 | . . . . . . . 2 1 1 . . . . . . . . . 1 . 2 . . . . 1 . . . . . . . . . . 1 . . Duelist 12 | . . . . . . . 2 2 . . 1 . . 1 . . 2 . . . . . . . . . . . . . . . . . 3 . . . 1 Protector 3 | . . . . . . . . . . . . . . . . . . . . . 2 . . . . . . . . . . . . . . . 1 . . Researcher 2 | . . . . . . . . . . . . . . . . . . . . . . . . . . . . . . . . . . . 2 . . . . Sentry 43 | . . . 2 . . . 7 2 1 . 1 4 . 3 . 2 1 3 . 1 4 2 . . 3 1 . . . 1 . . . . 2 2 1 . . Hunter 30 | . . . . . . 1 4 . . 2 1 . . . . . . . 1 . . . 2 . 3 . . . . . . 1 . . 13 2 . . . Programmer 42 | . . . . . . . . . . . . . . . . 1 2 . . . 2 . . . 2 3 . . . . . . . 3 14 1 2 . 12 Q-Series 1 | . . . . . . . . . . . . . . . . . . . . . . . . . . . . . . . . . . . . . . . 1 Behemoth 1 | . . . . . . . . . . . . . . . . . . . . . . . . . . . . . . . . . . . 1 . . . . S7 Guard 3 | . . . . . . . . . . . . . . . . . . . . . . . . . . . . . . . . . . . 3 . . . . Lightning 3 | . . . . . . . . . . . . . . . . . . . . . 3 . . . . . . . . . . . . . . . . . . Tracker 11 | . . . . . . . . . . . . . . . . . . . . . . . . . . . . . . . . . . . 4 . . . 7 Combat Programmer 7 | . . . . . . . . . . . . . . . . . . . . . . . . . . . . . . . . . . . 3 . . . 4 Alpha 7 2 | . . . . . . . . . . . . . . . . . . . . . . . . . . . . . . . . . . . 2 . . . . Butcher 1 | . . . . . . . . . . . . . . . . . . . 1 . . . . . . . . . . . . . . . . . . . . Best Kill Streak 19 | 1 2 1 4 1 . 2 7 6 6 11 4 8 . 13 . 4 3 4 2 1 9 1 2 . 3 7 . . . 1 1 1 . 2 16 19 7 2 10 Combat Bots Only 19 | . 2 1 3 1 . 1 5 6 5 11 4 8 . 13 . 4 3 3 2 1 9 1 2 . 2 7 . . . 1 . 1 . 2 12 19 6 2 7 Max Kills in Single Turn 19 | 1 1 1 3 1 . 1 6 3 2 5 2 3 . 3 . 2 2 4 1 1 1 1 1 . 1 1 . . . 1 1 1 . 1 8 19 1 1 6 Gunslinging . | . . . . . . . . . . . . . . . . . . . . . . . . . . . . . . . . . . . . . . . . Exploded 19 | . . . 2 . . . 3 3 2 5 1 3 . 3 . 2 2 3 1 1 . . . . . . . . . . . . . . 3 19 . . 4 Melee 1 | . . . . . . . . . . . 1 1 . . . . . 1 . . . . . . . . . . . . . . . . . . . . . Uniques/NPCs Destroyed . | . . . . . . . . . . . . . . . . . . . . . . . . . . . . . . . . . . . . . . . . Combat | -11 -10 -10 -9 -9 -9 -8 -8 -8 -8 -8 -7 -7 -7 -7 -6 -6 -6 -6 -6 -6 -6 -6 -5 -5 -5 -5 -4 -4 -4 -4 -4 -4 -3 -3 -3 -3 -2 -2 -2 -------- Run | Scr Mat Min Mat Min Exi Min Mat Gar Mat Gar Fac Gar Fac Gar Fac Gar Fac Ext Cet Arc Hub Gar Fac Was Fac Gar Fac Was Fac Gar Fac Gar Res Qua Sec Gar Res Gar Res Damage Taken 38912 | . 315 . 250 24 . 68 1950 279 227 158 1219 542 . 1458 . 804 295 496 23 . 1359 209 20 . 509 266 53 . 25 129 186 101 78 776 14748 41 4174 688 7442 Core 4141 | . 72 . 38 . . 21 134 15 . 17 70 23 . 238 . 104 54 62 . . 136 6 . . 38 4 . . . . 43 . . 162 1425 . 676 38 765 Absorbed by Shields 3779 | . . . . . . . . . . 19 . . . 205 . 120 262 453 22 . 118 10 . . . 115 . . . 54 . . . . 1257 . . 177 967 Reduced by Siege Mode 628 | . . . . . . . . . . . . . . . . . . . . . . . . . 22 . . . . . 6 . . . 395 . . . 205 Redirected to Core 566 | . . . . . . . . . . . . . . . . . . . . . . . . . . . . . . . . . . 131 435 . . . . Core Remaining (%) 69 | 100 . 71 . . . 85 . . . 69 . . . 52 . . . . . . . 57 . . . 95 . . . . . 96 . . . 4 . . . Volleys Fired 1551 | 3 43 8 63 8 . 4 142 27 11 15 35 33 . 31 . 47 44 82 14 1 64 25 11 7 33 40 8 2 8 14 14 12 26 44 280 1 39 36 276 Largest 3 | 2 2 2 2 2 . 2 2 2 2 2 2 2 . 2 . 2 2 2 2 2 2 2 1 1 2 2 2 2 1 2 2 2 1 2 3 1 2 2 1 Hottest 276 | 60 70 70 107 107 . 107 116 116 116 136 136 126 . 126 . 136 155 155 86 86 92 70 70 35 70 70 70 70 43 70 70 70 105 140 276 . 104 110 120 Shots Fired 2111 | 6 86 16 75 14 . 8 231 39 16 21 52 39 . 43 . 83 71 118 22 2 93 31 11 7 39 50 11 4 8 15 20 18 26 50 407 1 64 38 276 Gun 249 | 6 12 . . . . . . . . . . . . . . . 2 50 6 . 23 . . . . . . . . . . . . . 72 . 50 20 8 Cannon 1495 | . 74 16 69 14 . 8 209 29 13 11 49 28 . 26 . 73 63 33 . . 70 21 8 6 34 35 6 4 1 5 15 15 19 30 279 . 14 . 218 Launcher 160 | . . . 6 . . . 22 10 3 10 3 11 . 17 . 2 2 6 16 2 . . . . . . . . 1 . . . . . 45 1 . . 3 Special 207 | . . . . . . . . . . . . . . . . 8 4 29 . . . 10 3 1 5 15 5 . 6 10 5 3 7 20 11 . . 18 47 Kinetic 468 | 3 86 16 54 6 . 4 109 17 6 5 . . . . . . 6 13 . . 46 . . . . . . . . . . . . . 69 . 25 2 1 Thermal 778 | 3 . . 15 8 . 4 99 12 7 6 18 . . . . 56 57 20 . . 17 12 3 6 14 23 6 4 1 5 15 15 19 29 133 1 25 . 145 Explosive 97 | . . . 6 . . . 22 10 3 10 3 8 . 12 . 2 . 6 . . . . . . . . . . 1 . . . . . 11 . . . 3 Electromagnetic 561 | . . . . . . . 1 . . . 31 31 . 31 . 17 4 50 22 2 30 9 5 . 20 12 . . . . . . . 1 183 . 14 18 80 Robot Hit Streak 37 | 1 8 11 6 6 . 4 23 15 6 6 10 29 . 12 . 12 13 12 6 5 14 4 12 15 17 15 4 3 6 9 14 26 8 36 37 . 9 13 30 Robot Miss Streak 9 | 2 2 3 3 2 . 1 9 3 1 1 2 . . 1 . 4 2 2 1 . 5 2 . . 1 2 1 . 2 1 1 1 . 2 6 . 2 1 5 Penetration Max 2 | . . . . . . . . . . . . . . . . . . . . . 1 1 . . 1 1 . . . . . . . . 1 . 2 1 . Secondary Targets 1 | . . . . . . . . . . . . . . . . . . . . . . . . . . . . . . . . . . . 1 . . . . Max Gunslinging Chain 1 | . . . . . . . . . . . . . . . . . . . . . . . . . . . . . . . . . . . 1 . . . . Capacitor 238 | . . . . . . . . . . . . . . . . . . . . . . . . . . . . . . . . . . . . . . 13 225 Shots Hit Robots 1400 | 2 56 8 21 8 . 5 139 19 8 8 48 24 . 29 . 56 46 79 8 2 59 17 8 3 28 37 8 3 4 12 14 13 7 33 292 . 43 28 225 Core Hits 827 | 2 20 3 32 2 . 2 106 28 10 20 26 35 . 50 . 31 26 30 16 1 31 4 1 1 7 8 1 2 . 1 3 1 . 5 198 18 21 4 81 Critical Hits 106 | . . . 1 . . . 3 1 1 1 4 . . . . 4 3 1 . . 16 1 . . 4 1 1 . . . . . . 1 33 . 7 2 21 Critical Kills 36 | . . . 1 . . . 1 . . . 2 . . . . 4 2 1 . . 11 1 . . . . . . . . . . . . 9 . 3 1 . Critical Parts Destroyed 51 | . . . . . . . 2 1 1 1 2 . . . . . . . . . 5 . . . 3 . 1 . . . . . . 1 15 . 4 1 14 Melee Attacks 23 | . . . . . . . . . . . 18 . . 1 . . . 3 . . 1 . . . . . . . . . . . . . . . . . . Impact . | . . . . . . . . . . . . . . . . . . . . . . . . . . . . . . . . . . . . . . . . Slashing 21 | . . . . . . . . . . . 17 . . . . . . 3 . . 1 . . . . . . . . . . . . . . . . . . Piercing . | . . . . . . . . . . . . . . . . . . . . . . . . . . . . . . . . . . . . . . . . Sneak Attacks 4 | . . . . . . . . . . . 1 . . . . . . 3 . . . . . . . . . . . . . . . . . . . . . Combat Hostiles 3 | . . . . . . . . . . . . . . . . . . 3 . . . . . . . . . . . . . . . . . . . . . Follow-up Attacks . | . . . . . . . . . . . . . . . . . . . . . . . . . . . . . . . . . . . . . . . . Damage Inflicted 72524 | 28 1006 158 1046 207 . 111 5893 1098 703 1037 2182 1336 . 2265 . 1529 1430 2783 908 62 2380 413 362 68 1522 1330 149 119 13 132 373 322 . 670 14945 14985 1717 373 8869 Guns 4862 | 28 130 . . . . . . . . . . . . . . . 47 606 19 . 399 . . . . . . . . . . . . . 1930 . 1124 373 206 Cannons 32657 | . 868 157 498 207 . 70 3182 358 234 123 871 520 . 479 . 1075 1091 707 . . 1980 413 362 68 1516 1327 149 119 . 132 373 322 . 640 6915 . 559 . 7342 Explosions 33981 | . . . 486 . . . 2649 740 469 914 975 800 . 1786 . 449 292 1161 889 62 . . . . . . . . 13 . . . . . 6038 14985 . . 1273 Melee 626 | . . . . . . . . . . . 317 . . . . . . 309 . . . . . . . . . . . . . . . . . . . . . Ramming 398 | . 8 1 62 . . 41 62 . . . 19 16 . . . 5 . . . . 1 . . . 6 3 . . . . . . . 30 62 . 34 . 48 Kinetic 8042 | 18 998 157 332 102 . 49 1893 268 107 61 . . . . . . . 327 . . 726 . . . . . . . . . . . . . 2187 . 711 81 25 Thermal 33982 | 10 . . 182 105 . 21 2042 90 127 62 1044 . . 63 . 932 1091 467 48 . 326 103 . 68 356 659 149 119 . 132 373 322 . 640 3511 14985 413 . 5542 Explosive 11431 | . . . 396 . . . 1896 740 469 914 155 683 . 1402 . 277 . 1074 . . . . . . . . . . 13 . . . . . 2139 . . . 1273 Electromagnetic 18045 | . . . 74 . . . . . . . 647 637 . 800 . 315 339 606 860 62 1327 310 362 . 1160 668 . . . . . . . . 7046 . 559 292 1981 Impact . | . . . . . . . . . . . . . . . . . . . . . . . . . . . . . . . . . . . . . . . . Slashing 626 | . . . . . . . . . . . 317 . . . . . . 309 . . . . . . . . . . . . . . . . . . . . . Piercing . | . . . . . . . . . . . . . . . . . . . . . . . . . . . . . . . . . . . . . . . . Highest Corruption 10 | . . . . . . . . . . . . . . . . 1 2 2 . . 10 10 . . . . . . . . . . . 1 2 1 . . . Average Corruption 2 | . . . . . . . . . . . . . . . . 1 1 1 . . 6 10 . . . . . . . . . . . 1 1 1 . . . Corruption Purged 4 | . . . . . . . . . . . . . . . . . . 2 . . . . . . . . . . . . . . . . 2 . . . . Effects 106 | . . . . . . . . . . . . . . . . . 8 11 . . 24 40 . . . . . . . . . . . 1 16 6 . . . Message Errors 21 | . . . . . . . . . . . . . . . . . 3 2 . . 4 4 . . . . . . . . . . . . 5 3 . . . Matter Fused 11 | . . . . . . . . . . . . . . . . . . . . . 5 6 . . . . . . . . . . . . . . . . . Heat Flow Errors 10 | . . . . . . . . . . . . . . . . . . 3 . . 1 5 . . . . . . . . . . . . 1 . . . . Energy Discharges 14 | . . . . . . . . . . . . . . . . . 1 2 . . 1 4 . . . . . . . . . . . . 4 2 . . . Data Loss (minor) 15 | . . . . . . . . . . . . . . . . . 1 3 . . 2 6 . . . . . . . . . . . . 2 1 . . . Data Loss (major) 5 | . . . . . . . . . . . . . . . . . . . . . . 5 . . . . . . . . . . . . . . . . . Misfires 1 | . . . . . . . . . . . . . . . . . . . . . . 1 . . . . . . . . . . . . . . . . . Misdirections 5 | . . . . . . . . . . . . . . . . . . . . . . 5 . . . . . . . . . . . . . . . . . Targeting Errors 23 | . . . . . . . . . . . . . . . . . 3 1 . . 10 4 . . . . . . . . . . . 1 4 . . . . Weapon Failures 1 | . . . . . . . . . . . . . . . . . . . . . 1 . . . . . . . . . . . . . . . . . . Overload Shots 1 | . . . . . . . . . . . . . . . . . . . . . . . . . . . . . . . . . . 1 . . . . . Overflow Damage 3701 | . 5 9 18 8 . . 335 2 32 . 141 35 . 34 . 57 23 74 . . 26 . 35 . 210 38 . . . . 17 8 . 8 380 1916 33 . 257 Projectiles 1075 | . 5 9 10 8 . . 84 . 32 . 26 . . . . 3 7 . . . 26 . 35 . 210 38 . . . . 17 8 . 8 268 . 33 . 248 Explosions 2562 | . . . 8 . . . 251 2 . . 104 35 . 34 . 54 16 21 . . . . . . . . . . . . . . . . 112 1916 . . 9 Melee 64 | . . . . . . . . . . . 11 . . . . . . 53 . . . . . . . . . . . . . . . . . . . . . Knockbacks 73 | . 13 1 1 2 . 2 19 3 1 3 . . . . . . . 1 . . 5 . . . . . . . . . . . . 2 18 . 1 . 1 Impact 5 | . . . . . . 1 . . . . . . . . . . . . . . . . . . . . . . . . . . . 2 . . 1 . 1 Kinetic 64 | . 11 1 1 2 . 1 18 3 1 3 . . . . . . . 1 . . 5 . . . . . . . . . . . . . 17 . . . . Secondary 4 | . 2 . . . . . 1 . . . . . . . . . . . . . . . . . . . . . . . . . . . 1 . . . . Self-Inflicted Damage 1204 | . . . 38 . . . 239 26 . 23 43 63 . 263 . 49 . . . . . . . . . . . . . . . . . . 229 . 11 . 220 Shots 48 | . . . 1 . . . 9 1 . 2 1 3 . 11 . 1 . . . . . . . . . . . . . . . . . . 16 . . . 3 Rammed 50 | 1 . 1 13 . . 4 6 . . . 2 1 . . . 1 . . . . 1 . . . 2 1 . . . . . . . 2 6 . 3 . 6 Targets Rammed 59 | 1 1 1 14 . . 7 8 . . . 2 2 . . . 1 . . . . 1 . . . 2 1 . . . . . . . 2 6 . 4 . 6 Kicked 1 | . . . . . . . . . . . . . . . . . . . . . . . . . . . . . . . . . . . . . 1 . . Crushed 8 | . 1 . 1 . . 3 2 . . . . 1 . . . . . . . . . . . . . . . . . . . . . . . . . . . Highest Temperature 336 | 20 150 27 180 78 . 192 12 28 64 . 135 271 . 125 . 304 121 242 54 27 306 269 64 2 80 69 50 . 28 59 44 44 126 . 336 . . . 335 Average Temperature 60 | 13 32 10 65 30 . 99 2 17 19 . 47 104 . 39 . 78 36 53 20 16 73 83 25 2 27 22 17 . 14 25 16 27 42 . 91 . . . 101 Received Heat Transfer 4344 | . 174 . 51 . . . 549 72 117 18 483 159 . 351 . 177 63 103 4 . 265 81 . . 27 48 18 . . 43 72 9 . 27 739 12 279 35 368 Effects 5 | . . . . . . . . . . . . . . . . 1 . 2 . . . . . . . . . . . . . . . . . . . . 2 Energy Bleed 1 | . . . . . . . . . . . . . . . . 1 . . . . . . . . . . . . . . . . . . . . . . . Interference 4 | . . . . . . . . . . . . . . . . . . 2 . . . . . . . . . . . . . . . . . . . . 2 Siege Activations 14 | . . . . . . . . . . . . . . . . . . . . . . 1 . . 1 . . . . . 1 . . . 5 . . . 6 Total Turns 248 | . . . . . . . . . . . . . . . . . . . . . . 13 . . 12 . . . . . 11 . . . 148 . . . 64 Longest Duration 67 | . . . . . . . . . . . . . . . . . . . . . . 13 . . 12 . . . . . 11 . . . 67 . . . 21 Robots Corrupted 63 | . . . . . . . . . . . 3 2 . 1 . 1 . 1 1 . 6 1 2 . 5 5 . . . . . . . . 24 . 4 2 5 Combat Hostiles 59 | . . . . . . . . . . . 3 2 . 1 . 1 . 1 1 . 6 1 2 . 5 5 . . . . . . . . 23 . 3 2 3 Parts Fried 128 | . . . . . . . . . . . 3 4 . 7 . 1 2 3 2 . 16 . 9 . 9 5 . . . . . . . . 51 . 5 3 8 Impact Corruptions . | . . . . . . . . . . . . . . . . . . . . . . . . . . . . . . . . . . . . . . . . Robots Melted 4 | . . . . . . . . . . . . . . . . . . . . . . . . . . . . . . . . . . . 2 . . . 2 Combat Hostiles 4 | . . . . . . . . . . . . . . . . . . . . . . . . . . . . . . . . . . . 2 . . . 2 Parts Melted 51 | . . . . . . . 1 . . . . . . 1 . 4 6 . . . 5 . . . 5 1 . . . . 1 . . . 5 . . . 22 Heat Transferred 21736 | 25 . . 396 185 . 37 2757 148 222 111 1007 . . 100 . 1482 1795 633 50 . 450 150 . 100 450 800 200 150 . 200 550 500 . 633 3487 160 703 . 4255 Parts Sabotaged . | . . . . . . . . . . . . . . . . . . . . . . . . . . . . . . . . . . . . . . . . Parts Stolen . | . . . . . . . . . . . . . . . . . . . . . . . . . . . . . . . . . . . . . . . . Parts Stripped . | . . . . . . . . . . . . . . . . . . . . . . . . . . . . . . . . . . . . . . . . Power Chain Reactions 19 | . . . 1 . . . . . . . 2 . . 2 . 1 . 1 3 . . . . . . . . . . . . . . . 9 . . . . Missiles Intercepted . | . . . . . . . . . . . . . . . . . . . . . . . . . . . . . . . . . . . . . . . . Alert | -11 -10 -10 -9 -9 -9 -8 -8 -8 -8 -8 -7 -7 -7 -7 -6 -6 -6 -6 -6 -6 -6 -6 -5 -5 -5 -5 -4 -4 -4 -4 -4 -4 -3 -3 -3 -3 -2 -2 -2 ------- Run | Scr Mat Min Mat Min Exi Min Mat Gar Mat Gar Fac Gar Fac Gar Fac Gar Fac Ext Cet Arc Hub Gar Fac Was Fac Gar Fac Was Fac Gar Fac Gar Res Qua Sec Gar Res Gar Res Peak Influence 2349 | 5 257 107 271 27 . 55 965 1197 755 780 944 1023 536 1001 540 696 504 732 595 194 845 632 401 88 180 533 445 87 918 1232 646 602 651 461 1101 2349 1512 1664 1069 Average Influence 449 | 1 110 67 86 7 . 7 482 1019 667 752 700 883 536 722 526 546 371 221 359 183 487 547 295 68 56 329 327 44 347 925 421 516 498 281 611 921 1364 1246 362 Maximum Alert Level 5 | . 1 . 1 . . . 3 4 3 3 3 3 2 3 2 2 2 3 2 . 3 2 2 . . 2 2 . 3 4 2 2 2 2 4 5 4 5 3 Low Security (%) 34 | 100 87 100 92 100 . 100 19 . . . . . . . . . 11 50 8 100 12 . . 100 100 10 . 100 56 . . 8 . 13 3 . . . 50 Level 1 17 | . 12 . 7 . . . 11 . . . . . . 9 . 5 57 44 43 . 17 . 98 . . 49 69 . 2 . 34 13 5 84 23 . . . 25 Level 2 22 | . . . . . . . 42 7 54 6 29 13 100 44 100 94 31 1 47 . 48 100 1 . . 40 30 . 20 44 65 77 94 2 33 . . . . Level 3 18 | . . . . . . . 25 37 45 93 70 86 . 46 . . . 3 . . 20 . . . . . . . 20 3 . . . . 38 93 . 34 23 Level 4 6 | . . . . . . . . 54 . . . . . . . . . . . . . . . . . . . . . 52 . . . . . . 100 51 . Level 5 . | . . . . . . . . . . . . . . . . . . . . . . . . . . . . . . . . . . . . 6 . 13 . High Security . | . . . . . . . . . . . . . . . . . . . . . . . . . . . . . . . . . . . . . . . . Max Security . | . . . . . . . . . . . . . . . . . . . . . . . . . . . . . . . . . . . . . . . . Squads Dispatched 116 | . 5 . 3 1 . . 5 . . . 5 . 1 . . . 4 2 . . 7 . 1 . 2 . 1 . 5 . 2 . 3 7 29 . 3 . 30 Investigation 25 | . 4 . 2 1 . . 2 . . . 4 . 1 . . . 1 2 . . . . 1 . . . 1 . 1 . 1 . 1 . 1 . . . 2 Extermination 19 | . . . . . . . . . . . . . . . . . 1 . . . 2 . . . 1 . . . 1 . 1 . 1 2 5 . 1 . 4 Reinforcement 31 | . 1 . 1 . . . 2 . . . 1 . . . . . 1 . . . 1 . . . 1 . . . 3 . . . . 5 10 . . . 5 Assault 12 | . . . . . . . 1 . . . . . . . . . 1 . . . 1 . . . . . . . . . . . 1 . 4 . 2 . 2 Garrison 11 | . . . . . . . . . . . . . . . . . . . . . 3 . . . . . . . . . . . . . 3 . . . 5 Intercept 18 | . . . . . . . . . . . . . . . . . . . . . . . . . . . . . . . . . . . 6 . . . 12 Construction Impeded 6 | . . . . . . . 1 . . . . . . . . . . . . . . . . . . . . . 1 . . . . . 2 . . . 2 Haulers Reinforced 5 | . . . . . . . . . . . . . . . . . 1 . . . . . . . . . . . 1 . . . . . 3 . . . . Alert ID Control Effect 30 | . . . . . . . . . . . . . . . . . . . . . . . . . . . . . . . . . . . . . . . 30 Stealth | -11 -10 -10 -9 -9 -9 -8 -8 -8 -8 -8 -7 -7 -7 -7 -6 -6 -6 -6 -6 -6 -6 -6 -5 -5 -5 -5 -4 -4 -4 -4 -4 -4 -3 -3 -3 -3 -2 -2 -2 --------- Run | Scr Mat Min Mat Min Exi Min Mat Gar Mat Gar Fac Gar Fac Gar Fac Gar Fac Ext Cet Arc Hub Gar Fac Was Fac Gar Fac Was Fac Gar Fac Gar Res Qua Sec Gar Res Gar Res Distress Signals 40 | . 2 . 1 . . . 8 . . . 1 . . . . . . 2 2 . 2 . . . . . . . 1 . . . . 3 10 . 1 . 7 Communications Jammed . | . . . . . . . . . . . . . . . . . . . . . . . . . . . . . . . . . . . . . . . . Distress Signals . | . . . . . . . . . . . . . . . . . . . . . . . . . . . . . . . . . . . . . . . . Times Spotted 831 | . 26 8 25 2 . 1 61 14 6 12 27 18 . 31 1 26 27 40 14 2 40 12 4 . 9 29 8 . 17 25 8 8 12 28 113 5 43 28 101 Peak Tracking Total 14 | . 3 5 3 2 . 1 6 6 5 8 8 4 . 14 1 7 4 5 5 1 8 6 2 . 2 6 5 . 6 11 4 3 5 6 10 6 14 7 13 Tactical Retreats 36 | . 3 1 . 1 . . 2 1 . . 5 . . . . 3 . 2 . . 3 1 . . 1 2 . . . . . . . 3 1 . 7 . . Traps | -11 -10 -10 -9 -9 -9 -8 -8 -8 -8 -8 -7 -7 -7 -7 -6 -6 -6 -6 -6 -6 -6 -6 -5 -5 -5 -5 -4 -4 -4 -4 -4 -4 -3 -3 -3 -3 -2 -2 -2 ------- Run | Scr Mat Min Mat Min Exi Min Mat Gar Mat Gar Fac Gar Fac Gar Fac Gar Fac Ext Cet Arc Hub Gar Fac Was Fac Gar Fac Was Fac Gar Fac Gar Res Qua Sec Gar Res Gar Res Traps Triggered 48 | . 2 . . . . . . 3 . 4 . 3 . 5 . 2 . 3 . . . 3 1 . . 3 1 . . 4 . 2 . . 2 . 1 7 2 Indirectly 5 | . . . . . . . . . . . . 3 . . . . . . . . . . . . . . . . . . . . . . 2 . . . . Trap Hack Attempts 7 | . . . . . . . . . . . . . . . . . . 7 . . . . . . . . . . . . . . . . . . . . . Triggered . | . . . . . . . . . . . . . . . . . . . . . . . . . . . . . . . . . . . . . . . . Disarmed . | . . . . . . . . . . . . . . . . . . . . . . . . . . . . . . . . . . . . . . . . Reprogrammed 7 | . . . . . . . . . . . . . . . . . . . . . . . . . . . . . . . . . . 7 . . . . . Reused 7 | . . . . 2 . . . . . . . . . . . . . . . . . . . . . . . . . . . . . 5 . . . . . Traps Extracted . | . . . . . . . . . . . . . . . . . . . . . . . . . . . . . . . . . . . . . . . . Installed 5 | . . . . 5 . . . . . . . . . . . . . . . . . . . . . . . . . . . . . . . . . . . Triggered 8 | . . . . 2 . . . . . . . . . . . . . . . . 1 . . . . . . . . . . . . 5 . . . . . Machines | -11 -10 -10 -9 -9 -9 -8 -8 -8 -8 -8 -7 -7 -7 -7 -6 -6 -6 -6 -6 -6 -6 -6 -5 -5 -5 -5 -4 -4 -4 -4 -4 -4 -3 -3 -3 -3 -2 -2 -2 ---------- Run | Scr Mat Min Mat Min Exi Min Mat Gar Mat Gar Fac Gar Fac Gar Fac Gar Fac Ext Cet Arc Hub Gar Fac Was Fac Gar Fac Was Fac Gar Fac Gar Res Qua Sec Gar Res Gar Res Machines Disabled 109 | . 1 1 3 . . 1 16 3 . 1 10 1 . 2 . 2 . 12 3 2 8 3 . . 1 4 . . . 1 . 2 2 6 17 2 . 4 1 Max in Single Turn 6 | . 1 1 2 . . 1 6 2 . 1 4 1 . 1 . 1 . 2 2 . 1 1 . . 1 1 . . . 1 . 1 1 1 1 2 . 1 1 Garrison Access 1 | . . . . . . . . . . . . . . . . . . . . . . . . . . . . . . . . . . . . . . . 1 Garrison Relay 16 | . . . . . . . . 1 . . . . . 1 . 2 . . . . . 3 . . . 3 . . . 1 . 1 . . . . . 4 . Phase Generator 1 | . . . . . . . . 1 . . . . . . . . . . . . . . . . . . . . . . . . . . . . . . . Network Hub 1 | . . . . . . . . . . . . . . . . . . . . . 1 . . . . . . . . . . . . . . . . . . Energy Cycler 1 | . . . . . . . . . . . . . . . . . . 1 . . . . . . . . . . . . . . . . . . . . . Machines Sabotaged . | . . . . . . . . . . . . . . . . . . . . . . . . . . . . . . . . . . . . . . . . Garrisons Compromised . | . . . . . . . . . . . . . . . . . . . . . . . . . . . . . . . . . . . . . . . . Overloaded Fab Kills . | . . . . . . . . . . . . . . . . . . . . . . . . . . . . . . . . . . . . . . . . Fab Network Shutdowns . | . . . . . . . . . . . . . . . . . . . . . . . . . . . . . . . . . . . . . . . . Hacking | -11 -10 -10 -9 -9 -9 -8 -8 -8 -8 -8 -7 -7 -7 -7 -6 -6 -6 -6 -6 -6 -6 -6 -5 -5 -5 -5 -4 -4 -4 -4 -4 -4 -3 -3 -3 -3 -2 -2 -2 --------- Run | Scr Mat Min Mat Min Exi Min Mat Gar Mat Gar Fac Gar Fac Gar Fac Gar Fac Ext Cet Arc Hub Gar Fac Was Fac Gar Fac Was Fac Gar Fac Gar Res Qua Sec Gar Res Gar Res Machines Accessed 133 | . 8 . 11 2 4 . 12 . 1 . 7 . 1 . 2 . 7 19 4 . 5 . 3 . 3 . 2 . 3 . 6 . 4 9 11 . 2 . 7 Terminals 90 | . 6 . 8 1 . . 7 . . . 4 . . . 1 . 3 19 4 . 4 . 3 . 1 . 1 . 2 . 2 . 2 7 10 . 1 . 4 Fabricators 2 | . . . . . . . . . . . . . . . . . 1 . . . . . . . . . . . . . . . . . . . . . 1 Repair Stations 8 | . . . 1 . . . 2 . . . . . . . . . 1 . . . . . . . . . 1 . . . 1 . . 2 . . . . . Recycling Units 14 | . 2 . 1 . . . 2 . . . 2 . . . . . 2 . . . . . . . 1 . . . . . 2 . 2 . . . . . . Scanalyzers 1 | . . . 1 . . . . . . . . . . . . . . . . . . . . . . . . . . . . . . . . . . . . Garrison Access 13 | . . . . . . . 1 . 1 . 1 . 1 . 1 . . . . . 1 . . . 1 . . . 1 . 1 . . . 1 . 1 . 2 Total Hacks 452 | . 29 . 29 7 48 . 30 . 3 . 16 . 2 . 3 . 17 50 13 . 15 . 18 . 7 . 18 . 8 . 15 . 12 38 42 . 4 . 28 Successful 259 | . 18 . 16 3 48 . 14 . 3 . 8 . 2 . 1 . 8 25 9 . 5 . 7 . 4 . 10 . 6 . 12 . 4 20 22 . 1 . 13 Failed 192 | . 11 . 13 3 . . 16 . . . 8 . . . 2 . 9 25 4 . 10 . 11 . 3 . 8 . 2 . 3 . 8 18 20 . 3 . 15 Catastrophic 20 | . 3 . 1 . . . 2 . . . . . . . . . 1 . 1 . . . 3 . . . . . . . . . 1 2 4 . . . 2 Database Lockouts 1 | . . . . 1 . . . . . . . . . . . . . . . . . . . . . . . . . . . . . . . . . . . Manual 212 | . 20 . 11 4 . . 16 . 1 . 10 . 1 . . . 8 19 13 . 9 . 14 . 4 . 4 . 5 . 7 . 2 13 20 . 3 . 28 Terminals 322 | . 27 . 23 6 . . 23 . . . 11 . . . 2 . 10 50 13 . 14 . 18 . 4 . 10 . 6 . 9 . 7 31 41 . 3 . 14 Fabricators 4 | . . . . . . . . . . . . . . . . . 2 . . . . . . . . . . . . . . . . . . . . . 2 Repair Stations 26 | . . . 2 . . . 4 . . . . . . . . . 3 . . . . . . . . . 8 . . . 2 . . 7 . . . . . Recycling Units 18 | . 2 . 1 . . . 2 . . . 2 . . . . . 2 . . . . . . . 2 . . . . . 2 . 5 . . . . . . Scanalyzers 3 | . . . 3 . . . . . . . . . . . . . . . . . . . . . . . . . . . . . . . . . . . . Garrison Access 30 | . . . . . . . 1 . 3 . 3 . 2 . 1 . . . . . 1 . . . 1 . . . 2 . 2 . . . 1 . 1 . 12 Terminal Hacks 149 | . 11 . 8 3 48 . 7 . . . 2 . . . . . 3 17 5 . 2 . 3 . . . 1 . 3 . 4 . 1 14 14 . . . 3 Record 49 | . . . . . 48 . . . . . . . . . . . . . 1 . . . . . . . . . . . . . . . . . . . . Part Schematic 4 | . 1 . . 1 . . . . . . . . . . . . . 1 . . . . . . . . . . . . . . . 1 . . . . . Robot Analysis 4 | . 3 . 1 . . . . . . . . . . . . . . . . . . . . . . . . . . . . . . . . . . . . Prototype ID Bank 19 | . 2 . 3 . . . 1 . . . . . . . . . . 2 . . 1 . 1 . . . 1 . 1 . . . . 3 4 . . . . Open Door 9 | . . . . 1 . . . . . . . . . . . . 1 6 . . . . . . . . . . . . . . . . 1 . . . . Level Access Points 2 | . . . . . . . 1 . . . . . . . . . . . . . . . . . . . . . . . . . . 1 . . . . . Branch Access Points 2 | . . . . . . . . . . . . . . . . . 1 . . . . . . . . . . . . . . . 1 . . . . . . Emergency Access Points 1 | . . . 1 . . . . . . . . . . . . . . . . . . . . . . . . . . . . . . . . . . . . Terminal Index 2 | . . . 1 . . . . . . . . . . . . . . . . . . . 1 . . . . . . . . . . . . . . . . Recycling Unit Index 1 | . 1 . . . . . . . . . . . . . . . . . . . . . . . . . . . . . . . . . . . . . . Alert Level 4 | . 1 . 1 . . . 2 . . . . . . . . . . . . . . . . . . . . . . . . . . . . . . . . Unreport Threat 19 | . . . . . . . 2 . . . . . . . . . 1 3 4 . . . . . . . . . . . 4 . . 1 4 . . . . Locate Traps 11 | . . . . . . . 1 . . . 1 . . . . . . 4 . . 1 . . . . . . . 1 . . . . 2 1 . . . . Reprogram Traps 2 | . . . . . . . . . . . . . . . . . . . . . . . . . . . . . . . . . . 2 . . . . . Dispatch Records 2 | . . . . . . . . . . . . . . . . . . . . . . . . . . . . . . . . . . 1 . . . . 1 Coupling Status 1 | . . . . . . . . . . . . . . . . . . . . . . . . . . . . . . . . . . . . . . . 1 Recall Investigation 7 | . 2 . . 1 . . . . . . 1 . . . . . . 1 . . . . . . . . . . . . . . . . 1 . . . 1 Recall Reinforcements 4 | . . . . . . . . . . . . . . . . . . . . . . . . . . . . . 1 . . . . 1 2 . . . . Recall Assault 1 | . . . . . . . . . . . . . . . . . . . . . . . . . . . . . . . . . . . 1 . . . . Hauler Manifests 3 | . 1 . 1 . . . . . . . . . . . . . . . . . . . . . . . . . . . . . . 1 . . . . . Registered Components 1 | . . . . . . . . . . . . . . . . . . . . . . . 1 . . . . . . . . . . . . . . . . Zone Layout 1 | . . . . . . . . . . . . . . . . . . . . . . . . . . . . . . . . . . 1 . . . . . Fabricator Hacks 1 | . . . . . . . . . . . . . . . . . 1 . . . . . . . . . . . . . . . . . . . . . . Load Schematic 1 | . . . . . . . . . . . . . . . . . 1 . . . . . . . . . . . . . . . . . . . . . . Repair Station Hacks 15 | . . . 2 . . . 2 . . . . . . . . . . . . . . . . . . . 6 . . . 2 . . 3 . . . . . Scan Component 9 | . . . 1 . . . 1 . . . . . . . . . . . . . . . . . . . 4 . . . 1 . . 2 . . . . . Repair 6 | . . . 1 . . . 1 . . . . . . . . . . . . . . . . . . . 2 . . . 1 . . 1 . . . . . Recycling Unit Hacks 7 | . . . . . . . . . . . . . . . . . 2 . . . . . . . 1 . . . . . 2 . 2 . . . . . . Retrieve Components 7 | . . . . . . . . . . . . . . . . . 2 . . . . . . . 1 . . . . . 2 . 2 . . . . . . Scanalyzer 3 | . . . 3 . . . . . . . . . . . . . . . . . . . . . . . . . . . . . . . . . . . . Insert Component 1 | . . . 1 . . . . . . . . . . . . . . . . . . . . . . . . . . . . . . . . . . . . Analyze 2 | . . . 2 . . . . . . . . . . . . . . . . . . . . . . . . . . . . . . . . . . . . Garrison Access Hacks 13 | . . . . . . . 1 . 2 . 2 . 1 . 1 . . . . . 1 . . . 1 . . . 1 . 1 . . . 1 . 1 . . Unlock Access 11 | . . . . . . . 1 . 1 . 1 . 1 . 1 . . . . . 1 . . . 1 . . . 1 . 1 . . . 1 . 1 . . Coupler Status 2 | . . . . . . . . . 1 . 1 . . . . . . . . . . . . . . . . . . . . . . . . . . . . Unauthorized Hacks 190 | . 14 . 10 . . . 11 . 2 . 10 . 2 . . . 5 17 8 . 10 . 10 . 6 . 7 . 5 . 7 . 3 8 18 . 3 . 34 Terminals 51 | . 5 . 2 . . . 2 . . . 1 . . . . . 2 8 4 . 2 . 4 . 2 . 3 . 1 . 2 . 1 3 7 . . . 2 Track 14 | . 2 . . . . . . . . . . . . . . . . 4 2 . 1 . 1 . 1 . 1 . . . . . . . 2 . . . . Assimilate 2 | . . . . . . . . . . . . . . . . . . . . . . . 1 . . . . . . . . . . . 1 . . . . Botnet 30 | . 2 . 2 . . . 2 . . . 1 . . . . . 2 3 2 . 1 . 2 . 1 . 1 . 1 . 2 . 1 3 2 . . . 2 Detonate 1 | . . . . . . . . . . . . . . . . . . . . . . . . . . . . . . . . . . . 1 . . . . Disrupt 1 | . . . . . . . . . . . . . . . . . . . . . . . . . . . . . . . . . . . 1 . . . . Operators 3 | . 1 . . . . . . . . . . . . . . . . 1 . . . . . . . . 1 . . . . . . . . . . . . Fabricators 1 | . . . . . . . . . . . . . . . . . . . . . . . . . . . . . . . . . . . . . . . 1 Haulers 1 | . . . . . . . . . . . . . . . . . . . . . . . . . . . . . . . . . . . . . . . 1 Repair Stations . | . . . . . . . . . . . . . . . . . . . . . . . . . . . . . . . . . . . . . . . . Recycling Units 7 | . 2 . 1 . . . 2 . . . 2 . . . . . . . . . . . . . . . . . . . . . . . . . . . . Tunnel 7 | . 2 . 1 . . . 2 . . . 2 . . . . . . . . . . . . . . . . . . . . . . . . . . . . Scanalyzers . | . . . . . . . . . . . . . . . . . . . . . . . . . . . . . . . . . . . . . . . . Garrison Access 12 | . . . . . . . . . 1 . 1 . 1 . . . . . . . . . . . . . . . 1 . 1 . . . . . . . 7 Broadcast 1 | . . . . . . . . . . . . . . . . . . . . . . . . . . . . . . . . . . . . . . . 1 Restock 3 | . . . . . . . . . 1 . . . . . . . . . . . . . . . . . . . . . . . . . . . . . 2 Reprogram 2 | . . . . . . . . . . . . . . . . . . . . . . . . . . . . . . . . . . . . . . . 2 Intercept 1 | . . . . . . . . . . . . . . . . . . . . . . . . . . . . . . . . . . . . . . . 1 Watchers 1 | . . . . . . . . . . . . . . . . . . . . . . . . . . . . . . . . . . . . . . . 1 Eject 4 | . . . . . . . . . . . 1 . 1 . . . . . . . . . . . . . . . 1 . 1 . . . . . . . . Data Cores Recovered 3 | . . . 1 . . . . . . . . . . . . . . 1 . . . . . . . . . . . . 1 . . . . . . . . Used . | . . . . . . . . . . . . . . . . . . . . . . . . . . . . . . . . . . . . . . . . Hacking Detections 105 | . 6 . 8 . . . 9 . . . 4 . 1 . 2 . 6 19 4 . 4 . 3 . 2 . 2 . 2 . 5 . 3 8 9 . 1 . 7 Full Trace Events 10 | . 1 . . . . . 1 . . . 1 . . . . . 1 2 . . . . 1 . . . 1 . . . . . 1 . 1 . . . . Feedback Events . | . . . . . . . . . . . . . . . . . . . . . . . . . . . . . . . . . . . . . . . . Feedback Blocked . | . . . . . . . . . . . . . . . . . . . . . . . . . . . . . . . . . . . . . . . . Robot Schematics Acquired . | . . . . . . . . . . . . . . . . . . . . . . . . . . . . . . . . . . . . . . . . Robots Built . | . . . . . . . . . . . . . . . . . . . . . . . . . . . . . . . . . . . . . . . . Matter . | . . . . . . . . . . . . . . . . . . . . . . . . . . . . . . . . . . . . . . . . Time . | . . . . . . . . . . . . . . . . . . . . . . . . . . . . . . . . . . . . . . . . Total Robot Build Rating . | . . . . . . . . . . . . . . . . . . . . . . . . . . . . . . . . . . . . . . . . Part Schematics Acquired 15 | . 1 . 1 1 . . . . . . . . . . . . . 1 . . . . . . . . . . . . . . . 11 . . . . . Parts Built . | . . . . . . . . . . . . . . . . . . . . . . . . . . . . . . . . . . . . . . . . Matter . | . . . . . . . . . . . . . . . . . . . . . . . . . . . . . . . . . . . . . . . . Time . | . . . . . . . . . . . . . . . . . . . . . . . . . . . . . . . . . . . . . . . . Total Part Build Rating . | . . . . . . . . . . . . . . . . . . . . . . . . . . . . . . . . . . . . . . . . Parts Repaired 6 | . . . 1 . . . 1 . . . . . . . . . . . . . . . . . . . 2 . . . 1 . . 1 . . . . . Time 367 | . . . 80 . . . 32 . . . . . . . . . . . . . . . . . . . 210 . . . 37 . . 8 . . . . . Parts Recycled . | . . . . . . . . . . . . . . . . . . . . . . . . . . . . . . . . . . . . . . . . Recycled Matter . | . . . . . . . . . . . . . . . . . . . . . . . . . . . . . . . . . . . . . . . . Retrieved Matter . | . . . . . . . . . . . . . . . . . . . . . . . . . . . . . . . . . . . . . . . . Retrieved Components 10 | . . . . . . . . . . . . . . . . . 3 . . . . . . . . . . . . . 4 . 3 . . . . . . Parts Scanalyzed 1 | . . . 1 . . . . . . . . . . . . . . . . . . . . . . . . . . . . . . . . . . . . Part Schematics Acquired 1 | . . . 1 . . . . . . . . . . . . . . . . . . . . . . . . . . . . . . . . . . . . Parts Damaged . | . . . . . . . . . . . . . . . . . . . . . . . . . . . . . . . . . . . . . . . . Bothacking | -11 -10 -10 -9 -9 -9 -8 -8 -8 -8 -8 -7 -7 -7 -7 -6 -6 -6 -6 -6 -6 -6 -6 -5 -5 -5 -5 -4 -4 -4 -4 -4 -4 -3 -3 -3 -3 -2 -2 -2 ------------ Run | Scr Mat Min Mat Min Exi Min Mat Gar Mat Gar Fac Gar Fac Gar Fac Gar Fac Ext Cet Arc Hub Gar Fac Was Fac Gar Fac Was Fac Gar Fac Gar Res Qua Sec Gar Res Gar Res Used RIF Installer 10 | . . . . . . . . 1 . 1 . 1 . 1 . 1 . . . . . 1 . . . 1 . . . 1 . 1 . . . . . 1 . Coupler Efficiency 2 | . . . . . . . . . . . . . . . . 1 . . . . . . . . . 1 . . . . . . . . . . . . . Robot Detection 1 | . . . . . . . . . . . . . . . . . . . . . . . . . . . . . . 1 . . . . . . . . . Patrol Navigation 1 | . . . . . . . . . . . . . . . . . . . . . . 1 . . . . . . . . . . . . . . . . . Alert ID Control 1 | . . . . . . . . . . . . . . . . . . . . . . . . . . . . . . . . . . . . . . 1 . Structural Interface 1 | . . . . . . . . . . . . 1 . . . . . . . . . . . . . . . . . . . . . . . . . . . Program Shield 1 | . . . . . . . . . . 1 . . . . . . . . . . . . . . . . . . . . . . . . . . . . . Autoassimilate 1 | . . . . . . . . . . . . . . 1 . . . . . . . . . . . . . . . . . . . . . . . . . Crosswire 1 | . . . . . . . . . . . . . . . . . . . . . . . . . . . . . . . . 1 . . . . . . . Robots Hacked 153 | . . . . . . . . . . . 1 . . 1 . 6 4 4 . . 1 8 2 . 2 13 4 . 6 10 2 2 10 18 14 . . 17 28 Non-combat 16 | . . . . . . . . . . . 1 . . . . . . . . . . . 2 . 1 . 1 . . . . . . 1 1 . . . 9 Combat 137 | . . . . . . . . . . . . . . 1 . 6 4 4 . . 1 8 . . 1 13 3 . 6 10 2 2 10 17 13 . . 17 19 Autoassimilated 38 | . . . . . . . . . . . . . . . . 1 3 1 . . 1 2 . . . 2 . . 4 2 . . 4 6 7 . . 4 1 Robot Hacks Applied 126 | . . . . . . . . . . . 1 . . 1 . 5 2 4 . . . 6 3 . 2 11 4 . 2 8 3 2 6 13 8 . . 13 32 parse_system 11 | . . . . . . . . . . . . . . . . . . 1 . . . . 1 . . . . . . . 1 . . 2 1 . . . 5 find_chute 3 | . . . . . . . . . . . 1 . . . . . . . . . . . 1 . . . 1 . . . . . . . . . . . . drop_inventory 3 | . . . . . . . . . . . . . . . . . . . . . . . 1 . 1 . . . . . . . . . 1 . . . . purge_threat 7 | . . . . . . . . . . . . . . . . . . . . . . . . . . . . . . . . . . 1 . . . . 6 locate_traps 1 | . . . . . . . . . . . . . . . . . . . . . . . . . . . . . . . . . . . . . . . 1 map_route 4 | . . . . . . . . . . . . . . . . . . . . . . . . . . . . . . . . . . . . . . . 4 disable_scanner 2 | . . . . . . . . . . . . . . . . . . . . . . . . . . . . . . . . . . 2 . . . . . locate_prototypes 2 | . . . . . . . . . . . . . . . . . . . . . . . . . . . . . . . . . . 1 1 . . . . report_schematics 1 | . . . . . . . . . . . . . . . . . . . . . . . . . . . . . . . . . . 1 . . . . . find_garrison 5 | . . . . . . . . . . . . . . . . . 1 . . . . . . . 1 . . . 1 . 1 . . . 1 . . . . reboot_system 5 | . . . . . . . . . . . . . . . . . . 2 . . . . . . . . . . . . . . 1 . . . . 2 . overwrite_iff 13 | . . . . . . . . . . . . . . . . 2 . . . . . 3 . . . 1 1 . . 2 . 1 1 1 . . . . 1 formatsys_low 1 | . . . . . . . . . . . . . . . . . . . . . . . . . . . . . . . . . . 1 . . . . . formatsys_high 68 | . . . . . . . . . . . . . . 1 . 3 1 1 . . . 3 . . . 10 2 . 1 6 1 1 4 4 4 . . 11 15 Relay Couplers Released 81 | . . . . . . . . 4 . . 4 . . 3 . 6 . . . . . 14 . . . 10 . . 3 4 4 5 . . . . . 15 9 Ejected 11 | . . . . . . . . . . . 4 . . . . . . . . . . . . . . . . . 3 . 4 . . . . . . . . Machine Destruction 62 | . . . . . . . . 4 . . . . . 3 . 6 . . . . . 14 . . . 10 . . . 4 . 5 . . . . . 15 1 Programmers 8 | . . . . . . . . . . . . . . . . . . . . . . . . . . . . . . . . . . . . . . . 8 Attached 48 | . . . . . . . . . . . . . . 1 . 3 1 . . . . 4 1 . . 8 . . 1 4 . 3 3 1 3 . . 9 6 Crosswired 12 | . . . . . . . . . . . . . . . . . . . . . . . . . . . . . . . . 5 . . . . . 3 4 Robots Rewired 13 | . . . . . . . . . . . . . . . . . . 11 . . . 1 . . . . . . . . . . . . . . . . 1 Allies Hacked . | . . . . . . . . . . . . . . . . . . . . . . . . . . . . . . . . . . . . . . . . Hacks Repelled . | . . . . . . . . . . . . . . . . . . . . . . . . . . . . . . . . . . . . . . . . Allies | -11 -10 -10 -9 -9 -9 -8 -8 -8 -8 -8 -7 -7 -7 -7 -6 -6 -6 -6 -6 -6 -6 -6 -5 -5 -5 -5 -4 -4 -4 -4 -4 -4 -3 -3 -3 -3 -2 -2 -2 -------- Run | Scr Mat Min Mat Min Exi Min Mat Gar Mat Gar Fac Gar Fac Gar Fac Gar Fac Ext Cet Arc Hub Gar Fac Was Fac Gar Fac Was Fac Gar Fac Gar Res Qua Sec Gar Res Gar Res Total Allies 183 | . . 3 . . . . . . . . . . . 1 . 6 4 27 5 . 1 9 1 . . 13 3 20 5 10 1 2 9 12 12 . . 15 24 Largest Group 26 | . . 3 3 . . . . . . . . . . 1 . 2 3 20 17 12 7 3 1 1 1 9 11 25 26 19 19 17 13 14 3 . . 12 10 Highest-Rated Group 1001 | . . 40 40 . . . . . . . . . . 16 . 59 99 700 970 758 352 58 10 10 10 281 293 954 1001 862 832 804 587 634 177 . . 692 534 Highest-Rated Ally 156 | . . 16 16 . . . . . . . . . . 16 . 47 41 156 156 156 94 30 10 10 10 49 49 50 50 115 50 115 64 64 64 . . 69 125 Total Orders 16 | . . . . . . . . . . . . . . . . . 2 3 2 . . . . . 1 . . . . . . . . 4 2 . . 2 . STAY 3 | . . . . . . . . . . . . . . . . . 1 . . . . . . . . . . . . . . . . 1 . . . 1 . GOTO 7 | . . . . . . . . . . . . . . . . . . 2 1 . . . . . 1 . . . . . . . . 2 1 . . . . FOLLOW 6 | . . . . . . . . . . . . . . . . . 1 1 1 . . . . . . . . . . . . . . 1 1 . . 1 . Ally Attacks 1408 | . . 6 35 . . . . . . . . . . 3 . 17 44 126 85 27 43 30 . . . 37 63 . 171 68 34 61 43 130 48 . . 94 243 Total Damage 38283 | . . 56 400 . . . . . . . . . . 32 . 633 1024 3002 2175 786 1255 433 . . . 671 934 . 3837 2502 1220 2189 1286 3863 1751 . . 3088 7146 Kills 229 | . . 2 8 . . . . . . . . . . . . 1 10 25 13 3 11 2 . . . 7 9 . 23 15 8 11 9 20 5 . . 14 33 Allies Corrupted 6 | . . . . . . . . . . . . . . . . . . . . . 2 . . . . . . . 1 . . . . . . . . . 3 Allies Melted . | . . . . . . . . . . . . . . . . . . . . . . . . . . . . . . . . . . . . . . . . Intel | -11 -10 -10 -9 -9 -9 -8 -8 -8 -8 -8 -7 -7 -7 -7 -6 -6 -6 -6 -6 -6 -6 -6 -5 -5 -5 -5 -4 -4 -4 -4 -4 -4 -3 -3 -3 -3 -2 -2 -2 ------- Run | Scr Mat Min Mat Min Exi Min Mat Gar Mat Gar Fac Gar Fac Gar Fac Gar Fac Ext Cet Arc Hub Gar Fac Was Fac Gar Fac Was Fac Gar Fac Gar Res Qua Sec Gar Res Gar Res Robot Analysis Total 4 | . 3 . 1 . . . . . . . . . . . . . . . . . . . . . . . . . . . . . . . . . . . . Derelict Logs Recovered 2 | . . . . 2 . . . . . . . . . . . . . . . . . . . . . . . . . . . . . . . . . . . Drone Launches . | . . . . . . . . . . . . . . . . . . . . . . . . . . . . . . . . . . . . . . . . Drone Recoveries . | . . . . . . . . . . . . . . . . . . . . . . . . . . . . . . . . . . . . . . . . Exploration | -11 -10 -10 -9 -9 -9 -8 -8 -8 -8 -8 -7 -7 -7 -7 -6 -6 -6 -6 -6 -6 -6 -6 -5 -5 -5 -5 -4 -4 -4 -4 -4 -4 -3 -3 -3 -3 -2 -2 -2 ------------- Run | Scr Mat Min Mat Min Exi Min Mat Gar Mat Gar Fac Gar Fac Gar Fac Gar Fac Ext Cet Arc Hub Gar Fac Was Fac Gar Fac Was Fac Gar Fac Gar Res Qua Sec Gar Res Gar Res Turns Passed 38185 | 106 1064 637 2195 1586 826 1331 3140 1432 258 829 729 819 14 575 100 713 1096 2163 469 413 935 808 627 513 851 1309 434 775 439 400 478 708 668 1184 2616 769 473 1794 1909 Spaces Moved 17380 | 52 465 379 1106 707 456 543 1148 583 90 339 290 355 8 310 67 386 712 1334 222 45 381 385 299 264 387 546 229 313 230 189 229 370 311 589 969 131 360 819 782 Core 421 | 3 . . . . . . . . . . . . . . . . . . . . . . . . . . . . . . . . . . 51 101 167 77 22 Treads 13135 | 49 465 379 1106 707 456 543 1148 583 90 339 290 355 8 33 . 19 . . 192 45 381 385 299 264 387 1 . 273 230 189 229 370 311 589 918 . . 742 760 Legs 223 | . . . . . . . . . . . . . . . . . . . . . . . . . . . . . . . . . . . . 30 193 . . Wheels 3601 | . . . . . . . . . . . . . . 277 67 367 712 1334 30 . . . . . . 545 229 40 . . . . . . . . . . . Hover . | . . . . . . . . . . . . . . . . . . . . . . . . . . . . . . . . . . . . . . . . Flight . | . . . . . . . . . . . . . . . . . . . . . . . . . . . . . . . . . . . . . . . . Fastest Speed 50 | 50 160 160 160 180 180 180 180 230 230 230 173 173 173 140 140 115 115 115 125 180 180 180 180 180 180 140 150 150 180 180 180 180 180 172 50 50 50 50 50 Average Speed 167 | 155 160 160 176 180 180 180 202 230 230 230 178 173 173 144 140 134 124 124 172 180 180 181 198 180 180 150 150 176 180 180 180 180 180 173 157 66 91 158 168 Slowest Speed 280 | 160 160 160 180 180 180 180 230 230 230 230 201 173 173 280 140 280 125 125 180 180 180 200 200 180 180 280 150 180 180 180 180 180 185 180 187 120 150 172 172 Overloaded Moves . | . . . . . . . . . . . . . . . . . . . . . . . . . . . . . . . . . . . . . . . . Propulsion Burnouts . | . . . . . . . . . . . . . . . . . . . . . . . . . . . . . . . . . . . . . . . . Robots Hopped 1 | . . . . . . . . . . . . . . . . . . . . . . . . . . . . . . . . . . 1 . . . . . Cave-ins Triggered 1 | . . . . . . . . . . . . . . . . . . . . . . . . . . . . . . . . . . . . . . . 1 Teleports 1 | . . . . . . . . . . . . . . . . . . . . . . . . . . . . . . . . . . . 1 . . . . Exploration Rate (%) 53 | 6 77 67 74 99 90 68 80 77 12 69 11 69 . 72 2 42 24 97 80 67 43 64 8 95 12 93 6 96 12 45 5 84 14 85 59 36 14 99 32 Regions Visited 39 Branch Regions 10 Pre-discovered Areas 10 | . 2 . 1 2 1 . 2 . . . 2 . . . . . . . . . . . . . . . . . . . . . . . . . . . . Known Exits Taken 17 | . . . 1 1 1 1 1 . 1 . 1 . 1 . 1 . 1 . . . 1 . . . 1 . . . 1 . 1 . 1 . 1 . 1 . . Unknown Exits Taken 7 | 1 1 1 . . . . . . . . . . . . . . . 1 1 1 . . . . . . . . . . . . . 1 . . . . . Scrap Searched 4 | . . 2 . 1 . 1 . . . . . . . . . . . . . . . . . . . . . . . . . . . . . . . . . Spaces Dug 173 | . . . 7 . . . 26 5 . . 4 12 . 9 . 11 7 18 4 . 4 . 3 4 2 . . . 11 . 4 . 13 4 24 . . . 1 Terrain Destroyed 1636 | . . . 43 . . . 147 106 32 11 65 18 . 55 . 24 7 120 6 . 27 2 3 4 5 . 2 1 11 . 4 . 13 8 171 702 . . 49 Melee 5 | . . . . . . . . . . . 4 . . . . . . . . . 1 . . . . . . . . . . . . . . . . . . Projectile 191 | . . . 4 . . . 33 1 2 . . . . . . . 7 3 . . 26 2 3 4 5 . 2 1 1 . 4 . 13 8 49 . . . 23 AOE 1440 | . . . 39 . . . 114 105 30 11 61 18 . 55 . 24 . 117 6 . . . . . . . . . 10 . . . . . 122 702 . . 26 Actions | -11 -10 -10 -9 -9 -9 -8 -8 -8 -8 -8 -7 -7 -7 -7 -6 -6 -6 -6 -6 -6 -6 -6 -5 -5 -5 -5 -4 -4 -4 -4 -4 -4 -3 -3 -3 -3 -2 -2 -2 --------- Run | Scr Mat Min Mat Min Exi Min Mat Gar Mat Gar Fac Gar Fac Gar Fac Gar Fac Ext Cet Arc Hub Gar Fac Was Fac Gar Fac Was Fac Gar Fac Gar Res Qua Sec Gar Res Gar Res Total 24629 | 68 706 394 1268 1011 463 883 1712 632 126 367 414 516 8 394 73 515 868 1722 284 375 534 470 324 299 508 995 312 534 250 246 282 395 400 709 1665 812 438 1295 1362 Wait 4001 | . 158 . 35 265 . 320 282 2 8 . 14 117 . 9 . 22 30 199 7 328 11 19 1 . 42 350 67 205 1 14 26 . 49 26 153 678 3 376 184 Move 17349 | 52 464 378 1105 706 455 542 1148 582 90 338 289 354 8 309 67 385 711 1333 221 44 381 384 299 263 386 545 229 312 229 188 228 369 310 586 969 130 360 818 782 Hop 1 | . . . . . . . . . . . . . . . . . . . . . . . . . . . . . . . . . . 1 . . . . . Pick Up 357 | 6 15 4 14 9 3 3 26 3 6 1 12 1 . 10 3 17 25 16 5 . 9 13 3 6 9 7 3 4 2 6 6 2 3 8 50 . 7 8 32 Fast Attach 195 | 7 7 . 4 2 . . 10 . 1 . 7 2 . 4 . . 3 5 11 1 16 . 1 6 6 4 1 2 3 1 . . 3 7 30 . 11 24 16 Attach 200 | . . . 3 3 1 1 10 1 1 1 7 3 . 5 2 9 7 4 . . 4 5 5 3 8 8 2 1 . 1 . . 3 4 68 2 6 6 16 Detach 67 | . . . 1 . . . 3 . . . 1 . . 2 . . 1 . 2 . 7 3 1 . 2 4 . . . . . . . 3 25 1 3 4 4 Swap 358 | . 1 1 16 3 1 4 59 9 3 4 19 4 . 7 . 20 16 36 7 . 16 9 1 1 5 10 2 2 4 6 3 6 2 20 40 . . 1 20 Drop 360 | . 17 2 13 10 3 2 24 2 6 1 10 . . 5 1 12 31 21 17 1 24 6 2 13 15 7 . 6 3 6 5 2 4 7 43 . 5 9 25 Fire 1551 | 3 43 8 63 8 . 4 142 27 11 15 35 33 . 31 . 47 44 82 14 1 64 25 11 7 33 40 8 2 8 14 14 12 26 44 280 1 39 36 276 Melee 23 | . . . . . . . . . . . 18 . . 1 . . . 3 . . 1 . . . . . . . . . . . . . . . . . . Ram 2 | . . . . . . . . . . . . . . . . . . . . . . . . . . . . . . . . . . . . . 2 . . Kick 2 | . . . . . . . . . . . . . . . . . . . . . . . . . . . . . . . . . . . . . 2 . . Crush 54 | . 1 1 14 . . 7 8 . . . 2 2 . . . 1 . . . . 1 . . . 2 1 . . . . . . . 2 6 . . . 6 Escape Stasis 86 | . . . . . . . . 6 . 7 . . . 10 . 2 . 16 . . . 6 . . . 14 . . . 8 . 4 . . . . . 13 . Rewire 11 | . . . . . . . . . . . . . . 1 . . . . . . . . . . . 5 . . . 2 . . . 1 1 . . . 1 Trap 12 | . . . . 5 . . . . . . . . . . . . . 7 . . . . . . . . . . . . . . . . . . . . . Miscellaneous . | . . . . . . . . . . . . . . . . . . . . . . . . . . . . . . . . . . . . . . . . Route ------- -11/Scrapyard -10/Materials (discovered 2 exits: *Mat / [*Min]) -10/Mines (discovered 2 exits: *Mat x2) -9/Materials (discovered 3 exits: *Mat x2 / *Min) -9/Mines (discovered 3 exits: *Mat x2 / *Exi) -9/Exiles -8/Mines -8/Materials (discovered 4 exits: *Fac x3 / Gar) -8/Garrison (discovered 3 exits: *Mat x3) -8/Materials -8/Garrison (discovered 3 exits: *Fac x3) -7/Factory (discovered 3 exits: *Low x2 / Gar) -7/Garrison (discovered 3 exits: *Fac x3) -7/Factory -7/Garrison (discovered 2 exits: *Fac x2) -6/Factory -6/Garrison -6/Factory (discovered 4 exits: *Low x2 / *Ext x2) -6/Extension (discovered 3 exits: *Fac x2 / *Cet) -6/Cetus (discovered 2 exits: *Fac / [*Arc]) -6/Archives -6/Hub_04(d) (discovered 2 exits: *Fac / Gar) -6/Garrison (discovered 2 exits: *Fac x2) -5/Factory -5/Waste -5/Factory (discovered 2 exits: *Fac / Gar) -5/Garrison (discovered 3 exits: *Fac x3) -4/Factory -4/Waste -4/Factory (discovered 2 exits: [*Upp] / Gar) -4/Garrison -4/Factory (discovered 2 exits: *Res / Gar) -4/Garrison (discovered 3 exits: *Res x3) -3/Research (discovered 2 exits: *Qua x2) -3/Quarantine (discovered 2 exits: *Res / *Sec) -3/Section 7 (discovered 2 exits: *Res / Gar) -3/Garrison -2/Research -2/Garrison (discovered 3 exits: *Res x3) -2/Research (discovered 2 exits: *Acc x2) History --------- Turn | Location | Event 7 | -11/Scrapyard | Discovered new exit (range 16) 107 | -11/Scrapyard | Entered Materials 300 | -10/Materials | Build established: Mutant 659 | -10/Materials | Discovered new exit (range 11) 713 | -10/Materials | Discovered new exit (range 7) 1171 | -10/Materials | Entered Mines 1174 | -10/Mines | Discovered new exit (range 14) 1605 | -10/Mines | Found a damaged Exp. Sensor Array with a note attached 1609 | -10/Mines | Found Prototype Device 1708 | -10/Mines | Assisted by bots powering up and referring to "LRC-V3" 1794 | -10/Mines | Discovered new exit (range 7) 1808 | -10/Mines | Entered Materials 1808 | -9/Materials | Accompanied by 3 allies 1808 | -9/Materials | Evolved 2 slots: Utility x2 2005 | -9/Materials | Identified Exp. Sensor Array 2257 | -9/Materials | Discovered new exit (range 14) 2346 | -9/Materials | Repaired Exp. Sensor Array? 2472 | -9/Materials | Discovered new exit (range 10) 2841 | -9/Materials | Discovered new exit (range 3) 4002 | -9/Materials | Identified exit to Mines 4003 | -9/Materials | Entered Mines 4192 | -9/Mines | Deemed a non-threat by the Exiles lab entrance 4194 | -9/Mines | Discovered new exit (range 5) 4200 | -9/Mines | Identified exit to Exiles 4243 | -9/Mines | Joined a pair of Derelicts in attacking an 0b10 outpost 4252 | -9/Mines | Learned Materials security intel 4433 | -9/Mines | Met a Derelict who couldn't figure out how to use a Trap Extractor 4866 | -9/Mines | Learned location of Zion (-6) 4933 | -9/Mines | Found a hidden stash of uninstalled traps 4970 | -9/Mines | Learned location of Storage (-7) 4970 | -9/Mines | Discovered new exit (range 6) 4979 | -9/Mines | Identified exit to Materials 5133 | -9/Mines | Discovered exit to Materials (range 7) 5151 | -9/Mines | Central database locked down 5589 | -9/Mines | Entered Exiles 5634 | -9/Exiles | Met 8R-AWN 5665 | -9/Exiles | Met EX-HEX 5714 | -9/Exiles | Met EX-BIN 5867 | -9/Exiles | Met EX-DEC 6065 | -9/Exiles | Visited The Gauntlet 6286 | -9/Exiles | Build established: Hauler-Mutant 6396 | -9/Exiles | Discovered new exit (range 14) 6414 | -9/Exiles | Identified exit to Mines 6415 | -9/Exiles | Entered Mines 6886 | -8/Mines | Discovered exit to Materials (range 5) 7746 | -8/Mines | Entered Materials 7746 | -8/Materials | Evolved 2 slots: Utility x2 9019 | -8/Materials | Repaired Mni. Grenade Launcher? 9263 | -8/Materials | Discovered new exit (range 16) 9744 | -8/Materials | Identified exit to Factory 10546 | -8/Materials | First assault squad dispatched 10885 | -8/Materials | Identified exit to Garrison 10886 | -8/Materials | Entered Garrison 11021 | -8/Garrison | Phase Generator disabled 11056 | -8/Garrison | Triggered checkpoint 11179 | -8/Garrison | Discovered new exit (range 8) 11302 | -8/Garrison | Triggered checkpoint 11407 | -8/Garrison | Discovered new exit (range 13) 11528 | -8/Garrison | Triggered checkpoint 11637 | -8/Garrison | Discovered new exit (range 8) 11665 | -8/Garrison | Installed Relay Interface Framework 12256 | -8/Garrison | Garrison Relay disabled 12318 | -8/Garrison | Entered Materials 12568 | -8/Materials | Identified exit to Garrison 12576 | -8/Materials | Entered Garrison 12621 | -8/Garrison | Triggered checkpoint 12632 | -8/Garrison | Triggered checkpoint 12664 | -8/Garrison | Destroyed 11 combat bots 12748 | -8/Garrison | Discovered exit to Factory (range 14) 13056 | -8/Garrison | Discovered exit to Factory (range 10) 13161 | -8/Garrison | Triggered checkpoint 13355 | -8/Garrison | Discovered exit to Factory (range 14) 13396 | -8/Garrison | Expanded RIF knowledge: Program Shield 13405 | -8/Garrison | Entered Factory 13405 | -7/Factory | Evolved 2 slots: Propulsion x1, Utility x1 13425 | -7/Factory | Discovered new exit (range 7) 13845 | -7/Factory | Lost 3 parts (1n1u1w) 13914 | -7/Factory | Discovered new exit (range 7) 13937 | -7/Factory | Identified exit to Lower Caves 14007 | -7/Factory | Found Prototype Launcher 14007 | -7/Factory | Identified Rocket Array 14120 | -7/Factory | Identified exit to Garrison 14134 | -7/Factory | Entered Garrison 14236 | -7/Garrison | Triggered checkpoint 14273 | -7/Garrison | Destroyed 8 combat bots 14361 | -7/Garrison | Discovered new exit (range 12) 14562 | -7/Garrison | Triggered checkpoint 14647 | -7/Garrison | Destroyed 7 combat bots 14657 | -7/Garrison | Lost 5 parts (3u2w) 14696 | -7/Garrison | Discovered new exit (range 15) 14786 | -7/Garrison | Triggered checkpoint 14886 | -7/Garrison | Discovered new exit (range 15) 14922 | -7/Garrison | Expanded RIF knowledge: Structural Interface 14953 | -7/Garrison | Entered Factory 14967 | -7/Factory | Identified exit to Garrison 14967 | -7/Factory | Entered Garrison 15077 | -7/Garrison | Destroyed 13 combat bots 15082 | -7/Garrison | Lost 6 parts (4n2w) 15090 | -7/Garrison | Triggered checkpoint 15131 | -7/Garrison | Discovered new exit (range 12) 15180 | -7/Garrison | Triggered checkpoint 15310 | -7/Garrison | Garrison Relay disabled 15360 | -7/Garrison | Triggered checkpoint 15449 | -7/Garrison | Triggered checkpoint 15480 | -7/Garrison | Destroyed 7 combat bots 15510 | -7/Garrison | Discovered new exit (range 15) 15536 | -7/Garrison | Expanded RIF knowledge: Autoassimilate 15542 | -7/Garrison | Entered Factory 15542 | -6/Factory | Evolved 2 slots: Utility x2 15642 | -6/Factory | Identified exit to Garrison 15642 | -6/Factory | Entered Garrison 15660 | -6/Garrison | Triggered checkpoint 15702 | -6/Garrison | Garrison Relay disabled 15838 | -6/Garrison | Triggered checkpoint 15846 | -6/Garrison | Triggered checkpoint 15858 | -6/Garrison | Triggered checkpoint 15891 | -6/Garrison | Lost 4 parts (1p2u1w) 15996 | -6/Garrison | Triggered checkpoint 16013 | -6/Garrison | Build established: Bothacker-Mutant 16066 | -6/Garrison | Discovered new exit (range 15) 16104 | -6/Garrison | Expanded RIF knowledge: Coupler Efficiency 16224 | -6/Garrison | Triggered checkpoint 16263 | -6/Garrison | Garrison Relay disabled 16316 | -6/Garrison | Spotted B-75 Beast 16355 | -6/Garrison | Entered Factory 16650 | -6/Factory | Spotted B-75 Beast 17055 | -6/Factory | First assault squad dispatched 17267 | -6/Factory | Discovered new exit (range 13) 17284 | -6/Factory | Identified exit to Lower Caves 17284 | -6/Factory | Identified exit to Extension 17451 | -6/Factory | Entered Extension 17451 | -6/Extension | Accompanied by 1 ally 17735 | -6/Extension | Rescued a captive Derelict 17735 | -6/Extension | Rescued a captive Derelict 17862 | -6/Extension | Rescued A7 18331 | -6/Extension | Spotted B-75 Beast 18342 | -6/Extension | Allies destroyed B-75 Beast 18361 | -6/Extension | Spotted B-75 Beast 18379 | -6/Extension | Allies destroyed B-75 Beast 18412 | -6/Extension | Discovered new exit (range 3) 18438 | -6/Extension | Rescued a captive Derelict 18439 | -6/Extension | Rescued a captive Derelict 18529 | -6/Extension | Rescued a captive Derelict 18625 | -6/Extension | Rescued a captive Derelict 18868 | -6/Extension | Door terminal overloaded 18868 | -6/Extension | Rescued a captive Derelict 18869 | -6/Extension | Rescued a captive Derelict 19013 | -6/Extension | Door terminal overloaded 19021 | -6/Extension | Rescued a captive Derelict 19049 | -6/Extension | Discovered new exit (range 10) 19050 | -6/Extension | Discovered new exit (range 6) 19200 | -6/Extension | Build established: Commander-Mutant 19239 | -6/Extension | Energy Cycler disabled 19240 | -6/Extension | Rescued a captive Derelict 19241 | -6/Extension | Rescued a captive Derelict 19243 | -6/Extension | Rescued a captive Derelict 19244 | -6/Extension | Rescued a captive Derelict 19254 | -6/Extension | Rescued a captive Derelict 19614 | -6/Extension | Entered Cetus 19614 | -6/Cetus | Accompanied by 12 allies 19619 | -6/Cetus | Acquired a Cetus Manufacturing Module code from A7 19636 | -6/Cetus | Spotted Cetus Guard 19636 | -6/Cetus | Spotted Cetus Guard 19638 | -6/Cetus | Spotted Cetus Guard 19640 | -6/Cetus | Spotted Cetus Guard 19643 | -6/Cetus | Allies destroyed Cetus Guard 19644 | -6/Cetus | Allies destroyed Cetus Guard 19646 | -6/Cetus | Allies destroyed Cetus Guard 19654 | -6/Cetus | Allies destroyed Cetus Guard 19779 | -6/Cetus | Started Cetus Manufacturing Module 19804 | -6/Cetus | Manufactured an Enhanced Grunt 19829 | -6/Cetus | Manufactured an Enhanced Grunt 19854 | -6/Cetus | Manufactured an Enhanced Grunt 19857 | -6/Cetus | Escorted A7 to Cetus Mainframe 19879 | -6/Cetus | Manufactured an Enhanced Grunt 19896 | -6/Cetus | Found a strange terminal 19904 | -6/Cetus | Manufactured an Enhanced Grunt 19905 | -6/Cetus | Build established: Bothacker-Mutant 19928 | -6/Cetus | Discovered new exit (range 15) 19957 | -6/Cetus | Spotted Cetus Guard 19957 | -6/Cetus | Spotted Cetus Guard 19960 | -6/Cetus | Spotted Cetus Guard 19963 | -6/Cetus | Allies destroyed Cetus Guard 19965 | -6/Cetus | Spotted Cetus Guard 19970 | -6/Cetus | Allies destroyed Cetus Guard 19971 | -6/Cetus | Allies destroyed Cetus Guard 19976 | -6/Cetus | Allies destroyed Cetus Guard 19980 | -6/Cetus | Found Prototype Device 19980 | -6/Cetus | Identified Exp. Thermal Shield 19985 | -6/Cetus | Discovered new exit (range 15) 20014 | -6/Cetus | Met Revision 17 20083 | -6/Cetus | Entered Archives 20083 | -6/Archives | Accompanied by 12 allies 20088 | -6/Archives | Received a hacking code to weaken MAIN.C 20137 | -6/Archives | Discovered new exit (range 16) 20496 | -6/Archives | Entered Hub_04(d) 20496 | -6/Hub_04(d) | Accompanied by 7 allies 20505 | -6/Hub_04(d) | Discovered new exit (range 16) 20615 | -6/Hub_04(d) | Network Hub disabled 20882 | -6/Hub_04(d) | Spotted Lightning 20883 | -6/Hub_04(d) | Spotted Lightning 20883 | -6/Hub_04(d) | Spotted Lightning 20884 | -6/Hub_04(d) | Garrison activated, responded to threat 20905 | -6/Hub_04(d) | Destroyed Lightning 20918 | -6/Hub_04(d) | Found Prototype Device 20918 | -6/Hub_04(d) | Identified EM Dispersion Field 20933 | -6/Hub_04(d) | Destroyed Lightning 20939 | -6/Hub_04(d) | Found Prototype Processor 20939 | -6/Hub_04(d) | Identified Exp. Targeting Computer 20968 | -6/Hub_04(d) | System corruption reached 10% 20974 | -6/Hub_04(d) | Destroyed Lightning 21039 | -6/Hub_04(d) | Found Prototype Device 21039 | -6/Hub_04(d) | Identified Exp. Phase Shifter 21047 | -6/Hub_04(d) | Found Prototype Energy Cannon 21047 | -6/Hub_04(d) | Identified EMDS 21055 | -6/Hub_04(d) | Found EMDS 21196 | -6/Hub_04(d) | First assault squad dispatched 21268 | -6/Hub_04(d) | Build established: Scavenger-Mutant 21356 | -6/Hub_04(d) | Destroyed 9 combat bots 21431 | -6/Hub_04(d) | Identified exit to Garrison 21431 | -6/Hub_04(d) | Entered Garrison 21503 | -6/Garrison | Garrison Relay disabled 21590 | -6/Garrison | Triggered checkpoint 21610 | -6/Garrison | Triggered checkpoint 21616 | -6/Garrison | Triggered checkpoint 21707 | -6/Garrison | Garrison Relay disabled 21760 | -6/Garrison | Discovered new exit (range 15) 21794 | -6/Garrison | Expanded RIF knowledge: Patrol Navigation 21819 | -6/Garrison | Build established: Botlord-Mutant 22029 | -6/Garrison | Discovered new exit (range 14) 22120 | -6/Garrison | Triggered checkpoint 22144 | -6/Garrison | Garrison Relay disabled 22239 | -6/Garrison | Entered Factory 22239 | -5/Factory | Evolved 2 slots: Utility x2 22293 | -5/Factory | Found Exp. Terrain Scan Processor 22866 | -5/Factory | Sucked down chute 22866 | -5/Factory | Entered Waste 22866 | -5/Waste | The area was eerily silent 22871 | -5/Waste | Found Prototype Device 22871 | -5/Waste | Identified Exp. Weapon Cycler 22930 | -5/Waste | 1 allies followed down the chute 23018 | -5/Waste | Found Damper Plating 23071 | -5/Waste | Found Damper Plating 23101 | -5/Waste | Discovered new exit (range 15) 23379 | -5/Waste | Entered Factory 23379 | -5/Factory | Accompanied by 1 ally 24136 | -5/Factory | Discovered new exit (range 6) 24178 | -5/Factory | Identified exit to Garrison 24230 | -5/Factory | Entered Garrison 24357 | -5/Garrison | Destroyed 7 combat bots 24361 | -5/Garrison | Garrison Relay disabled 24366 | -5/Garrison | Triggered checkpoint 24888 | -5/Garrison | Triggered checkpoint 24890 | -5/Garrison | Triggered checkpoint 25004 | -5/Garrison | Triggered checkpoint 25014 | -5/Garrison | Garrison Relay disabled 25060 | -5/Garrison | Discovered new exit (range 14) 25178 | -5/Garrison | Triggered checkpoint 25213 | -5/Garrison | Garrison Relay disabled 25245 | -5/Garrison | Triggered checkpoint 25293 | -5/Garrison | Discovered new exit (range 12) 25392 | -5/Garrison | Triggered checkpoint 25434 | -5/Garrison | Discovered new exit (range 10) 25470 | -5/Garrison | Expanded RIF knowledge: Coupler Efficiency 25539 | -5/Garrison | Entered Factory 25539 | -4/Factory | Accompanied by 9 allies 25539 | -4/Factory | Evolved 2 slots: Utility x2 25778 | -4/Factory | Repaired Centrium Heavy Treads? 25929 | -4/Factory | Repaired Quantum Reactor 25973 | -4/Factory | Sucked down chute 25973 | -4/Factory | Entered Waste 25974 | -4/Waste | Joined by Warlord forces that had cleared the area 26050 | -4/Waste | 6 allies followed down the chute 26294 | -4/Waste | Found Damper Plating 26414 | -4/Waste | Discovered new exit (range 12) 26486 | -4/Waste | Found Prototype Device 26486 | -4/Waste | Identified Thermal Barrier 26748 | -4/Waste | Entered Factory 26748 | -4/Factory | Accompanied by 25 allies 26908 | -4/Factory | Discovered new exit (range 15) 27157 | -4/Factory | Identified exit to Garrison 27187 | -4/Factory | Entered Garrison 27187 | -4/Garrison | Accompanied by 15 allies 27196 | -4/Garrison | Expanded RIF knowledge: Robot Detection 27306 | -4/Garrison | Triggered checkpoint 27364 | -4/Garrison | Triggered checkpoint 27364 | -4/Garrison | Spotted B-86 Titan 27375 | -4/Garrison | Triggered checkpoint 27378 | -4/Garrison | Triggered checkpoint 27388 | -4/Garrison | Allies destroyed B-86 Titan 27400 | -4/Garrison | Triggered checkpoint 27452 | -4/Garrison | Triggered checkpoint 27483 | -4/Garrison | Garrison Relay disabled 27533 | -4/Garrison | Discovered new exit (range 14) 27587 | -4/Garrison | Entered Factory 27587 | -4/Factory | Accompanied by 18 allies 27709 | -4/Factory | Discovered new exit (range 16) 27913 | -4/Factory | Repaired Biometal Heavy Treads 28043 | -4/Factory | Identified exit to Garrison 28065 | -4/Factory | Entered Garrison 28065 | -4/Garrison | Accompanied by 16 allies 28128 | -4/Garrison | Garrison Relay disabled 28142 | -4/Garrison | Triggered checkpoint 28218 | -4/Garrison | Spotted B-86 Titan 28227 | -4/Garrison | Triggered checkpoint 28236 | -4/Garrison | Triggered checkpoint 28248 | -4/Garrison | Allies destroyed B-86 Titan 28314 | -4/Garrison | Discovered new exit (range 12) 28438 | -4/Garrison | Triggered checkpoint 28487 | -4/Garrison | Discovered new exit (range 10) 28692 | -4/Garrison | Discovered new exit (range 13) 28724 | -4/Garrison | Expanded RIF knowledge: Crosswire 28773 | -4/Garrison | Entered Research 28773 | -3/Research | Accompanied by 9 allies 28773 | -3/Research | Evolved 2 slots: Utility x2 29023 | -3/Research | First assault squad dispatched 29069 | -3/Research | Identified exit to Quarantine 29441 | -3/Research | Entered Quarantine 29441 | -3/Quarantine | Accompanied by 13 allies 29455 | -3/Quarantine | Found Alien Artifact 29455 | -3/Quarantine | Identified Subatomic Replicator 29493 | -3/Quarantine | Found Prototype Device 29493 | -3/Quarantine | Identified Exp. Transmission Jammer 29531 | -3/Quarantine | Spotted Alpha 7 29581 | -3/Quarantine | Allies destroyed Alpha 7 29604 | -3/Quarantine | Found Alien Launcher 29639 | -3/Quarantine | Found Multirail 30043 | -3/Quarantine | Identified exit to Research 30129 | -3/Quarantine | Found Phase Armor 30247 | -3/Quarantine | Repaired Hcp. Storage Unit 30285 | -3/Quarantine | Found Hpw. Transdimensional Reconstructor 30292 | -3/Quarantine | Found Hpw. Transdimensional Reconstructor 30487 | -3/Quarantine | Spotted Fortress 30615 | -3/Quarantine | Discovered new exit (range 6) 30625 | -3/Quarantine | Entered Section 7 30759 | -3/Section 7 | Found Integrity Redistributor 30831 | -3/Section 7 | Discovered exit to Research (range 15) 30954 | -3/Section 7 | Spotted S7 Guard 30964 | -3/Section 7 | Destroyed S7 Guard 30980 | -3/Section 7 | Found Prototype Protection 30980 | -3/Section 7 | Identified Hvy. Regenerative Plating 31007 | -3/Section 7 | Found Integrated Heat Negator 31007 | -3/Section 7 | Installed Integrated Heat Negator, increased core heat dissipation (+2%) 31106 | -3/Section 7 | Spotted Alpha 7 31125 | -3/Section 7 | Spotted Alpha 7 31149 | -3/Section 7 | Destroyed Alpha 7 31169 | -3/Section 7 | Core integrity fell below 50% 31197 | -3/Section 7 | Destroyed Alpha 7 31205 | -3/Section 7 | Found Exp. Target Analyzer 31215 | -3/Section 7 | Found Multirail 31220 | -3/Section 7 | Spotted S7 Guard 31226 | -3/Section 7 | Lost 10 parts (2p6u2w) 31238 | -3/Section 7 | Destroyed S7 Guard 31246 | -3/Section 7 | Found Hvy. Regenerative Plating 31368 | -3/Section 7 | Destroyed 12 combat bots 31420 | -3/Section 7 | Spotted S7 Guard 31423 | -3/Section 7 | Scanned by Researcher 31444 | -3/Section 7 | Destroyed S7 Guard 31457 | -3/Section 7 | Garrison activated, responded to threat 31499 | -3/Section 7 | Lost 6 parts (3u3w) 31500 | -3/Section 7 | Found Hvy. Regenerative Plating 31506 | -3/Section 7 | Destroyed 7 combat bots 31523 | -3/Section 7 | Found Core Regenerator 31670 | -3/Section 7 | First assault squad dispatched 31876 | -3/Section 7 | Used Subatomic Replicator to replicate Integrated Reactor 31877 | -3/Section 7 | Found Integrated Reactor 31877 | -3/Section 7 | Installed Integrated Reactor, increased core energy generation (+2%) 31880 | -3/Section 7 | Installed Integrated Reactor, increased core energy generation (+2%) 31959 | -3/Section 7 | Intercept squad dispatched 31971 | -3/Section 7 | Spotted Tracker 31981 | -3/Section 7 | Destroyed Tracker 32034 | -3/Section 7 | Found Integrity Redistributor 32037 | -3/Section 7 | Spotted Combat Programmer 32054 | -3/Section 7 | Destroyed Combat Programmer 32269 | -3/Section 7 | Found Core Membrane 32269 | -3/Section 7 | Installed Core Membrane, gained immunity to corruption 32368 | -3/Section 7 | Core integrity fell below 20% 32680 | -3/Section 7 | Spotted B-99 Colossus 32715 | -3/Section 7 | Destroyed B-99 Colossus 32777 | -3/Section 7 | Found Core Expander 32777 | -3/Section 7 | Installed Core Expander, added new Weapon slot 32834 | -3/Section 7 | Found LRC Storage 32834 | -3/Section 7 | Installed LRC Storage, increased inventory capacity (+2) 32837 | -3/Section 7 | Found LRC Energy Well 32837 | -3/Section 7 | Installed LRC Energy Well, increased energy storage capacity (+250) 32996 | -3/Section 7 | Intercept squad dispatched 32998 | -3/Section 7 | Spotted Tracker 33000 | -3/Section 7 | Spotted Tracker 33004 | -3/Section 7 | Spotted Tracker 33012 | -3/Section 7 | Destroyed Tracker 33012 | -3/Section 7 | Destroyed Tracker 33029 | -3/Section 7 | Destroyed Tracker 33043 | -3/Section 7 | Spotted Combat Programmer 33046 | -3/Section 7 | Spotted Combat Programmer 33046 | -3/Section 7 | Spotted Combat Programmer 33096 | -3/Section 7 | Destroyed Combat Programmer 33103 | -3/Section 7 | Used Core Regenerator, restored core integrity (+325) 33151 | -3/Section 7 | Destroyed 10 combat bots 33161 | -3/Section 7 | Destroyed Combat Programmer 33203 | -3/Section 7 | Used Integrity Redistributor, redistributed integrity to core (+25) 33205 | -3/Section 7 | Warped through subspace 33230 | -3/Section 7 | Lost 23 parts (1p3n13u6w) 33241 | -3/Section 7 | Identified exit to Garrison 33241 | -3/Section 7 | Entered Garrison 33452 | -3/Garrison | Build established: Scavenger-Mutant 33960 | -3/Garrison | Identified Sigix Terminator 33961 | -3/Garrison | Fired Sigix Terminator 33961 | -3/Garrison | Triggered checkpoint 33961 | -3/Garrison | Triggered checkpoint 33961 | -3/Garrison | Triggered checkpoint 33961 | -3/Garrison | Triggered checkpoint 33982 | -3/Garrison | Destroyed 19 combat bots 33986 | -3/Garrison | Triggered checkpoint 34008 | -3/Garrison | Discovered exit to Research (range 5) 34010 | -3/Garrison | Entered Research 34010 | -2/Research | Evolved 2 slots: Power x2 34288 | -2/Research | First assault squad dispatched 34459 | -2/Research | Spotted B-90 Cyclops 34483 | -2/Research | Identified exit to Garrison 34483 | -2/Research | Entered Garrison 34486 | -2/Garrison | Lost 15 parts (4n8u3w) 34510 | -2/Garrison | Triggered checkpoint 34683 | -2/Garrison | Build established: Mutant 34892 | -2/Garrison | Garrison Relay disabled 34956 | -2/Garrison | Spotted B-90 Cyclops 34962 | -2/Garrison | Triggered checkpoint 34975 | -2/Garrison | Triggered checkpoint 34982 | -2/Garrison | Triggered checkpoint 35041 | -2/Garrison | Found Unknown Device 35041 | -2/Garrison | Identified Quantum Capacitor 35094 | -2/Garrison | Triggered checkpoint 35169 | -2/Garrison | Discovered new exit (range 8) 35264 | -2/Garrison | Build established: Scavenger-Mutant 35307 | -2/Garrison | Discovered new exit (range 15) 35656 | -2/Garrison | Triggered checkpoint 35661 | -2/Garrison | Garrison Relay disabled 35696 | -2/Garrison | Discovered new exit (range 4) 35713 | -2/Garrison | Expanded RIF knowledge: Alert ID Control 35884 | -2/Garrison | Garrison Relay disabled 36016 | -2/Garrison | Triggered checkpoint 36043 | -2/Garrison | Garrison Relay disabled 36188 | -2/Garrison | Build established: Botlord-Mutant 36277 | -2/Garrison | Entered Research 36277 | -2/Research | Accompanied by 2 allies 36331 | -2/Research | Discovered new exit (range 49) 36527 | -2/Research | First assault squad dispatched 36671 | -2/Research | Identified exit to Access 36706 | -2/Research | Core integrity fell below 50% 36743 | -2/Research | Spotted B-90 Cyclops 36842 | -2/Research | Rewired B-90 Cyclops 36925 | -2/Research | Intercept squad dispatched 36943 | -2/Research | Spotted Tracker 36945 | -2/Research | Spotted Tracker 36947 | -2/Research | Destroyed Tracker 36956 | -2/Research | Found Exp. Targeting Computer 36962 | -2/Research | Discovered exit to Access (range 116) 36971 | -2/Research | Found Exp. Targeting Computer 36993 | -2/Research | Spotted Combat Programmer 37001 | -2/Research | Spotted Combat Programmer 37009 | -2/Research | Destroyed Combat Programmer 37084 | -2/Research | Allies destroyed Combat Programmer 37234 | -2/Research | Spotted B-90 Cyclops 37250 | -2/Research | Allies destroyed B-90 Cyclops 37298 | -2/Research | Garrison activated, responded to threat 37454 | -2/Research | Found Quantum Capacitor 37751 | -2/Research | Garrison activated, responded to threat 37883 | -2/Research | Intercept squad dispatched 37890 | -2/Research | Spotted Tracker 37891 | -2/Research | Spotted Tracker 37900 | -2/Research | Allies destroyed Tracker 37904 | -2/Research | Spotted Tracker 37905 | -2/Research | Spotted Combat Programmer 37910 | -2/Research | Destroyed Tracker 37914 | -2/Research | Destroyed Tracker 37918 | -2/Research | Destroyed Combat Programmer 37932 | -2/Research | Spotted Combat Programmer 37941 | -2/Research | Destroyed Combat Programmer 37954 | -2/Research | Spotted Combat Programmer 37959 | -2/Research | Destroyed Combat Programmer 38065 | -2/Research | Garrison activated, responded to threat 38129 | -2/Research | Intercept squad dispatched 38137 | -2/Research | Spotted Combat Programmer 38137 | -2/Research | Spotted Combat Programmer 38145 | -2/Research | Spotted Tracker 38146 | -2/Research | Spotted Tracker 38153 | -2/Research | Spotted Tracker 38153 | -2/Research | Spotted Tracker 38163 | -2/Research | Spotted Combat Programmer 38164 | -2/Research | Destroyed Tracker 38166 | -2/Research | Destroyed Tracker 38166 | -2/Research | Spotted Combat Programmer 38169 | -2/Research | Core integrity fell below 20% 38170 | -2/Research | Destroyed Tracker 38170 | -2/Research | Destroyed Tracker 38178 | -2/Research | Crushed by falling debris 38186 | -2/Research | Destroyed by Combat Programmer with EMDS Last Messages --------------- 38180_ Core Membrane filtered system corruption (1). 38181_ Acquired 99 matter. 38181_ EMDS Slug penetrates Wall. 38182_ Acquired 84 matter. 38182_ Penetrated by EMDS Slug. 38182_ Core Membrane filtered system corruption (2). 38183_ Penetrated by EMDS Slug. 38183_ U-05 Engineer lays Concrete. 38184_ Acquired 47 matter. 38184_ U-05 Engineer builds a Wall. 38185_ Penetrated by EMDS Slug. 38185_ Critical hit. 38185_ Biometal Heavy Treads destroyed. 38185_ Core Membrane filtered system corruption (2). 38185_ Penetrated by EMDS Slug. 38185_ Core Membrane filtered system corruption (1). 38186_ Penetrated by EMDS Slug. 38186_ Core Membrane filtered system corruption (1). 38186_ Penetrated by EMDS Slug. [Achievement: Curator] Map ----- +----------------------------------------------------+ | ???# #?????????????????????????????? | | ???# #########?????????????????????? | | ???# +?????????????????????? | | ??##+##+##### ####?????????????????????? | | ??# ####+######???????????????????? | | ??# # !! #???????????????????? | | ??#!! ! =# !! ########+#+##???????? | | ??#!! ! # ! # #???????? | | ??#! !%| # ! # ????????? | | ??# *[ + # ??????????? | | ??### ####= ! = # ????????????? | | ????###??# # ##########????? | | ?????????# # # #????? | | ?????????######+#### # #????? | | ???????????# # * #????? | | ???????????# # #????? | | ???????????# # !! #????? | | ???????????# !!! + ! #????? | | ???????????# !! # #????? | | ########???# !! # #????? | | # ] #???# == # #????? | | # #???# !%* ##########????? | | # ##### [ T#????????????? | | # + " " ##????????????? | | # = # " *! #?????????????? | | # #% k @ % ##?????????????? | | # ** %+ %[ ##?????????????? | | # * # = #????##Y???????? | | # ###+## #??? ???????? | | # * "# # !!! #?? ???????? | | # ! !!##! # !!! # "???????? | | # =%!!## !# !! # ""???????? | | # *!%*!## # # "" ??????? | | #####+### # s# ?????? | | ????#%#%# ! # s ?????? | | ????#!#!# # # """ "??????? | | ????#=####+##### # """?????????? | | ????#%#[ !##%=*=[ # ""??????????? | | ????# # ##p[=%!* # ??????????? | | ???##%# ##=###| # ?? ??????????? | | ???#T # | ##=# # ###??#?????????? | | ???##%##+#### ##[#!# #??????????????? | | ????# ### Y # #?????????????## | | ????# % # %* # #?????????????# | | ????# ## !!! #?????????????# | | ????# w ## *[*!% #?????????????# | | ????# # %%=![ #?????? # | | ????#+## ## [%h!=%=! #?????? # | | ????? ?+ # h !!! #?????? # | | ????? ?# ## " %* #?????? # | +----------------------------------------------------+ Best States ------------- Heat Dissipation 189 Coolant Potential 100 Energy Generation 85 Energy Capacity 1400 Matter Stores 300 Matter Capacity 500 Sight Range 20 Robot Scan Range 30 Terrain Scan Density 10 Power Amplification 30 Armor Coverage 2400 Resistance: KI 25 Resistance: TH 15 Resistance: EM 90 Core Shielding 30 Weapon Shielding 66 Weapon Cycling 15 Phase Shifting 20 Evasion (%) 50 Targeting Accuracy 12 Target Analysis 12 Recoil Reduction 3 Energy Filtering 30 Particle Charging 25 Offensive Hacking 14 Defensive Hacking 14 Item Schematics ----------------- Lrg. Storage Unit | -10/Materials | Hacked Exp. Sensor Array | -9/Materials | Scanalyzed Hcp. Storage Unit | -9/Mines | Hacked Powered Armor | -6/Extension | Hacked Quantum Shading Machine | -3/Quarantine | Reported Adv. Myomer Leg | -3/Quarantine | Reported Com. Mass Driver | -3/Quarantine | Reported Plasma Lance | -3/Quarantine | Reported Exp. Field Recycling Unit | -3/Quarantine | Reported Mni. Drone Bay | -3/Quarantine | Reported Gravity Neutralizing Apparatus | -3/Quarantine | Reported Thermal Defense Suite | -3/Quarantine | Reported Micro-nuke Launcher | -3/Quarantine | Reported Adv. Thermal Defense Suite | -3/Quarantine | Reported Adv. Weapon Cycler | -3/Quarantine | Hacked Robot Schematics ------------------ None Fabricated ------------ Nothing Alien Tech Used ----------------- Subatomic Replicator Phase Armor Integrated Heat Negator Integrated Reactor Core Membrane Core Expander LRC Storage LRC Energy Well Core Regenerator Integrity Redistributor High-powered Transdimensional Reconstructor Sigix Terminator Achievements -------------- Curator Fearless Challenges ------------ None Game ------ Seed SigixChainDrive Manual? 0 Play Time 07:52:45 Cumulative 1025.5 hours Start 2019.12.16 @ 19:00:30 End 2019.12.19 @ 15:46:04 Sessions 7 Manual Loads 0 Difficulty Rogue Special Mode None Game No. 375 Rogue 375 Adventurer 0 Explorer 0 Win Type - Total 247 Types 214/5/11/3/3/2/9 Lore% 97 Gallery% 100 Achievement% 92 Wizard Run 0 Options --------- ASCII 0 Keyboard 0 Movement Numpad Keybinds 0 Fullscreen 1 Font 18/Terminus Map View 76x50 Tactical HUD 1 Map Filters NONE Filters NONE Steam 1 RUN: 1b0346ec-0b82-4d2a-b6d9-2433269fa7a8